DepartmentFamily,Entity,Date,ExpenseType,ExpenseArea,Supplier,TransactionNumber,Amount,VATRegistrationNo
BIS,The Insolvency Service,25/11/2014,Training Costs,PEOPLE & CAPABILITY                                                                                 ,2NDQUADRANT LTD                                             ,BA0000281622,"2,000.00",919761586
BIS,The Insolvency Service,05/11/2014,Postage,OFFICIAL RECEIVER SERVICES                                                                          ,ABACUS EXPRESS,BA0000281198,27.40,417924146
BIS,The Insolvency Service,05/11/2014,Postage,OFFICIAL RECEIVER SERVICES                                                                          ,ABACUS EXPRESS,BA0000281199,14.51,417924146
BIS,The Insolvency Service,14/11/2014,Postage,OFFICIAL RECEIVER SERVICES                                                                          ,ABACUS EXPRESS,BA0000281415,44.56,417924146
BIS,The Insolvency Service,14/11/2014,Postage,OFFICIAL RECEIVER SERVICES                                                                          ,ABACUS EXPRESS,BA0000281418,14.51,417924146
BIS,The Insolvency Service,14/11/2014,Postage,OFFICIAL RECEIVER SERVICES                                                                          ,ABACUS EXPRESS,BA0000281420,14.51,417924146
BIS,The Insolvency Service,14/11/2014,Postage,OFFICIAL RECEIVER SERVICES                                                                          ,ABACUS EXPRESS,BA0000281425,18.81,417924146
BIS,The Insolvency Service,26/11/2014,Postage,OFFICIAL RECEIVER SERVICES                                                                          ,ABACUS EXPRESS,BA0000281727,38.16,417924146
BIS,The Insolvency Service,06/11/2014,Insolvency Case Related Costs,BUSINESS SERVICES DIRECTORATE                                                                       ,ADVICEUK                                                    ,BA0000281231,"36,485.00",
BIS,The Insolvency Service,03/11/2014,Agency Workers,FINANCE AND COMMERCIAL,ALLEN LANE LIMITED,BA0000281053,"2,675.52",
BIS,The Insolvency Service,03/11/2014,Agency Workers,FINANCE AND COMMERCIAL,ALLEN LANE LIMITED,BA0000281054,"6,683.21",
BIS,The Insolvency Service,11/11/2014,Agency Workers,FINANCE AND COMMERCIAL,ALLEN LANE LIMITED,BA0000281349,"2,675.52",
BIS,The Insolvency Service,18/11/2014,Agency Workers,FINANCE AND COMMERCIAL,ALLEN LANE LIMITED,BA0000281503,"2,675.52",
BIS,The Insolvency Service,25/11/2014,Agency Workers,FINANCE AND COMMERCIAL,ALLEN LANE LIMITED,BA0000281682,"6,683.21",
BIS,The Insolvency Service,25/11/2014,Agency Workers,FINANCE AND COMMERCIAL,ALLEN LANE LIMITED,BA0000281695,"2,675.52",
BIS,The Insolvency Service,21/11/2014,Accommodation,FINANCE AND COMMERCIAL                                                                              ,AMARYLLIS,BA0000281598,"4,254.42",
BIS,The Insolvency Service,01/11/2014,Office Supplies and Services,FINANCE AND COMMERCIAL                                                                              ,AMAZON.CO.UK LTD,BA0000281721,59.99,727255821
BIS,The Insolvency Service,01/11/2014,Telecoms,FINANCE AND COMMERCIAL                                                                              ,AMAZON.CO.UK LTD,BA0000281721,49.99,727255821
BIS,The Insolvency Service,01/11/2014,Office Supplies and Services,FINANCE AND COMMERCIAL                                                                              ,AMAZON.CO.UK LTD,BA0000281721,79.80,727255821
BIS,The Insolvency Service,01/11/2014,Office Supplies and Services,FINANCE AND COMMERCIAL                                                                              ,AMAZON.CO.UK LTD,BA0000281721,119.70,727255821
BIS,The Insolvency Service,01/11/2014,Office Supplies and Services,FINANCE AND COMMERCIAL                                                                              ,AMAZON.CO.UK LTD,BA0000281721,80.00,727255821
BIS,The Insolvency Service,01/11/2014,Office Supplies and Services,FINANCE AND COMMERCIAL                                                                              ,AMAZON.CO.UK LTD,BA0000281721,37.99,727255821
BIS,The Insolvency Service,01/11/2014,Office Supplies and Services,INVESTIGATIONS & ENFORCEMENT                                                                        ,AMAZON.CO.UK LTD,BA0000281721,2.50,727255821
BIS,The Insolvency Service,01/11/2014,Office Supplies and Services,OFFICIAL RECEIVER SERVICES                                                                          ,AMAZON.CO.UK LTD,BA0000281721,16.19,727255821
BIS,The Insolvency Service,01/11/2014,Office Supplies and Services,OFFICIAL RECEIVER SERVICES                                                                          ,AMAZON.CO.UK LTD,BA0000281721,11.99,727255821
BIS,The Insolvency Service,01/11/2014,Training Costs,PEOPLE & CAPABILITY                                                                                 ,AMAZON.CO.UK LTD,BA0000281721,44.99,727255821
BIS,The Insolvency Service,01/11/2014,Office Supplies and Services,BUSINESS SERVICES DIRECTORATE                                                                       ,AMMERHURST LTD,BA0000281721,8.56,231097780
BIS,The Insolvency Service,01/11/2014,Office Supplies and Services,FINANCE AND COMMERCIAL                                                                              ,AMMERHURST LTD,BA0000281721,10.72,231097780
BIS,The Insolvency Service,01/11/2014,Office Supplies and Services,FINANCE AND COMMERCIAL                                                                              ,AMMERHURST LTD,BA0000281721,21.48,231097780
BIS,The Insolvency Service,01/11/2014,Office Supplies and Services,FINANCE AND COMMERCIAL                                                                              ,AMMERHURST LTD,BA0000281721,21.49,231097780
BIS,The Insolvency Service,01/11/2014,Office Supplies and Services,FINANCE AND COMMERCIAL                                                                              ,AMMERHURST LTD,BA0000281721,9.52,231097780
BIS,The Insolvency Service,06/11/2014,Accommodation,BUSINESS SERVICES DIRECTORATE                                                                       ,ARCHIVE 2000 UK LTD,BA0000281223,"1,395.64",425421969
BIS,The Insolvency Service,01/11/2014,Accommodation,OFFICIAL RECEIVER SERVICES                                                                          ,ARGOS RETAIL GROUP,BA0000281721,34.98,145899025
BIS,The Insolvency Service,20/11/2014,Computer and IT Systems,FINANCE AND COMMERCIAL                                                                              ,ATOS IT SERVICES UK LTD,BA0000281564,"10,673.52",
BIS,The Insolvency Service,01/11/2014,Accommodation,OFFICIAL RECEIVER SERVICES                                                                          ,B&Q                                                         ,BA0000281721,6.00,
BIS,The Insolvency Service,14/11/2014,Agency Workers,FINANCE AND COMMERCIAL                                                                              ,BADENOCH & CLARK,BA0000281434,"3,300.00",232347975
BIS,The Insolvency Service,14/11/2014,Agency Workers,FINANCE AND COMMERCIAL                                                                              ,BADENOCH & CLARK,BA0000281441,930.00,232347975
BIS,The Insolvency Service,20/11/2014,Agency Workers,FINANCE AND COMMERCIAL                                                                              ,BADENOCH & CLARK,BA0000281556,"3,299.40",232347975
BIS,The Insolvency Service,20/11/2014,Agency Workers,FINANCE AND COMMERCIAL                                                                              ,BADENOCH & CLARK,BA0000281557,"3,300.00",232347975
BIS,The Insolvency Service,21/11/2014,Agency Workers,FINANCE AND COMMERCIAL                                                                              ,BADENOCH & CLARK,BA0000281597,"3,300.00",232347975
BIS,The Insolvency Service,21/11/2014,Agency Workers,FINANCE AND COMMERCIAL                                                                              ,BADENOCH & CLARK,BA0000281599,"2,639.52",232347975
BIS,The Insolvency Service,04/11/2014,Investigation and Enforcement Costs,INVESTIGATIONS & ENFORCEMENT                                                                        ,BAKER TILLY,BA0000281129,"7,107.80",890965570
BIS,The Insolvency Service,04/11/2014,Investigation and Enforcement Costs,INVESTIGATIONS & ENFORCEMENT                                                                        ,BAKER TILLY,BA0000281130,"8,085.00",890965570
BIS,The Insolvency Service,04/11/2014,Investigation and Enforcement Costs,INVESTIGATIONS & ENFORCEMENT                                                                        ,BAKER TILLY,BA0000281131,"8,545.00",890965570
BIS,The Insolvency Service,18/11/2014,Investigation and Enforcement Costs,INVESTIGATIONS & ENFORCEMENT                                                                        ,BAKER TILLY,BA0000281531,"3,395.00",890965570
BIS,The Insolvency Service,06/11/2014,Accommodation,ESTATES,BANNER BUSINESS SERVICES Ltd.,BA0000281230,15.12,731860439
BIS,The Insolvency Service,06/11/2014,Accommodation,ESTATES,BANNER BUSINESS SERVICES Ltd.,BA0000281230,17.46,731860439
BIS,The Insolvency Service,06/11/2014,Accommodation,ESTATES,BANNER BUSINESS SERVICES Ltd.,BA0000281230,21.25,731860439
BIS,The Insolvency Service,06/11/2014,Accommodation,ESTATES,BANNER BUSINESS SERVICES Ltd.,BA0000281230,25.20,731860439
BIS,The Insolvency Service,06/11/2014,Accommodation,ESTATES,BANNER BUSINESS SERVICES Ltd.,BA0000281230,29.34,731860439
BIS,The Insolvency Service,06/11/2014,Accommodation,ESTATES,BANNER BUSINESS SERVICES Ltd.,BA0000281230,30.60,731860439
BIS,The Insolvency Service,06/11/2014,Accommodation,ESTATES,BANNER BUSINESS SERVICES Ltd.,BA0000281230,36.48,731860439
BIS,The Insolvency Service,06/11/2014,Accommodation,ESTATES,BANNER BUSINESS SERVICES Ltd.,BA0000281230,37.66,731860439
BIS,The Insolvency Service,06/11/2014,Accommodation,ESTATES,BANNER BUSINESS SERVICES Ltd.,BA0000281230,58.80,731860439
BIS,The Insolvency Service,06/11/2014,Accommodation,ESTATES,BANNER BUSINESS SERVICES Ltd.,BA0000281230,61.73,731860439
BIS,The Insolvency Service,06/11/2014,Accommodation,ESTATES,BANNER BUSINESS SERVICES Ltd.,BA0000281230,64.82,731860439
BIS,The Insolvency Service,06/11/2014,Accommodation,ESTATES,BANNER BUSINESS SERVICES Ltd.,BA0000281230,64.98,731860439
BIS,The Insolvency Service,06/11/2014,Accommodation,ESTATES,BANNER BUSINESS SERVICES Ltd.,BA0000281230,70.50,731860439
BIS,The Insolvency Service,06/11/2014,Accommodation,ESTATES,BANNER BUSINESS SERVICES Ltd.,BA0000281230,76.20,731860439
BIS,The Insolvency Service,06/11/2014,Accommodation,ESTATES,BANNER BUSINESS SERVICES Ltd.,BA0000281230,81.90,731860439
BIS,The Insolvency Service,06/11/2014,Accommodation,ESTATES,BANNER BUSINESS SERVICES Ltd.,BA0000281230,94.75,731860439
BIS,The Insolvency Service,06/11/2014,Accommodation,ESTATES,BANNER BUSINESS SERVICES Ltd.,BA0000281230,99.18,731860439
BIS,The Insolvency Service,06/11/2014,Accommodation,ESTATES,BANNER BUSINESS SERVICES Ltd.,BA0000281230,104.58,731860439
BIS,The Insolvency Service,06/11/2014,Accommodation,ESTATES,BANNER BUSINESS SERVICES Ltd.,BA0000281230,116.00,731860439
BIS,The Insolvency Service,06/11/2014,Accommodation,ESTATES,BANNER BUSINESS SERVICES Ltd.,BA0000281230,132.18,731860439
BIS,The Insolvency Service,06/11/2014,Accommodation,ESTATES,BANNER BUSINESS SERVICES Ltd.,BA0000281230,311.30,731860439
BIS,The Insolvency Service,06/11/2014,Accommodation,ESTATES,BANNER BUSINESS SERVICES Ltd.,BA0000281230,"1,259.10",731860439
BIS,The Insolvency Service,25/11/2014,Office Supplies and Services,INFORMATION TECHNOLOGY                                                                              ,BANNER BUSINESS SERVICES Ltd.,BA0000281632,"4,593.71",731860439
BIS,The Insolvency Service,25/11/2014,Office Supplies and Services,INFORMATION TECHNOLOGY                                                                              ,BANNER BUSINESS SERVICES Ltd.,BA0000281617,"-2,958.18",731860439
BIS,The Insolvency Service,25/11/2014,Office Supplies and Services,INVESTIGATIONS & ENFORCEMENT                                                                        ,BANNER BUSINESS SERVICES Ltd.,BA0000281632,45.67,731860439
BIS,The Insolvency Service,25/11/2014,Office Supplies and Services,INVESTIGATIONS & ENFORCEMENT                                                                        ,BANNER BUSINESS SERVICES Ltd.,BA0000281617,-62.42,731860439
BIS,The Insolvency Service,25/11/2014,Office Supplies and Services,OFFICIAL RECEIVER SERVICES                                                                          ,BANNER BUSINESS SERVICES Ltd.,BA0000281632,54.35,731860439
BIS,The Insolvency Service,25/11/2014,Office Supplies and Services,OFFICIAL RECEIVER SERVICES                                                                          ,BANNER BUSINESS SERVICES Ltd.,BA0000281632,96.83,731860439
BIS,The Insolvency Service,25/11/2014,Office Supplies and Services,OFFICIAL RECEIVER SERVICES                                                                          ,BANNER BUSINESS SERVICES Ltd.,BA0000281632,112.68,731860439
BIS,The Insolvency Service,25/11/2014,Office Supplies and Services,OFFICIAL RECEIVER SERVICES                                                                          ,BANNER BUSINESS SERVICES Ltd.,BA0000281632,113.98,731860439
BIS,The Insolvency Service,25/11/2014,Office Supplies and Services,OFFICIAL RECEIVER SERVICES                                                                          ,BANNER BUSINESS SERVICES Ltd.,BA0000281632,122.94,731860439
BIS,The Insolvency Service,25/11/2014,Office Supplies and Services,OFFICIAL RECEIVER SERVICES                                                                          ,BANNER BUSINESS SERVICES Ltd.,BA0000281632,131.30,731860439
BIS,The Insolvency Service,25/11/2014,Office Supplies and Services,OFFICIAL RECEIVER SERVICES                                                                          ,BANNER BUSINESS SERVICES Ltd.,BA0000281632,148.44,731860439
BIS,The Insolvency Service,25/11/2014,Office Supplies and Services,OFFICIAL RECEIVER SERVICES                                                                          ,BANNER BUSINESS SERVICES Ltd.,BA0000281632,177.74,731860439
BIS,The Insolvency Service,25/11/2014,Office Supplies and Services,OFFICIAL RECEIVER SERVICES                                                                          ,BANNER BUSINESS SERVICES Ltd.,BA0000281632,254.12,731860439
BIS,The Insolvency Service,25/11/2014,Office Supplies and Services,OFFICIAL RECEIVER SERVICES                                                                          ,BANNER BUSINESS SERVICES Ltd.,BA0000281632,317.35,731860439
BIS,The Insolvency Service,25/11/2014,Office Supplies and Services,OFFICIAL RECEIVER SERVICES                                                                          ,BANNER BUSINESS SERVICES Ltd.,BA0000281632,352.03,731860439
BIS,The Insolvency Service,25/11/2014,Office Supplies and Services,OFFICIAL RECEIVER SERVICES                                                                          ,BANNER BUSINESS SERVICES Ltd.,BA0000281632,372.61,731860439
BIS,The Insolvency Service,25/11/2014,Office Supplies and Services,OFFICIAL RECEIVER SERVICES                                                                          ,BANNER BUSINESS SERVICES Ltd.,BA0000281632,436.39,731860439
BIS,The Insolvency Service,25/11/2014,Office Supplies and Services,OFFICIAL RECEIVER SERVICES                                                                          ,BANNER BUSINESS SERVICES Ltd.,BA0000281632,468.46,731860439
BIS,The Insolvency Service,25/11/2014,Office Supplies and Services,OFFICIAL RECEIVER SERVICES                                                                          ,BANNER BUSINESS SERVICES Ltd.,BA0000281632,479.88,731860439
BIS,The Insolvency Service,25/11/2014,Office Supplies and Services,OFFICIAL RECEIVER SERVICES                                                                          ,BANNER BUSINESS SERVICES Ltd.,BA0000281632,559.79,731860439
BIS,The Insolvency Service,25/11/2014,Office Supplies and Services,OFFICIAL RECEIVER SERVICES                                                                          ,BANNER BUSINESS SERVICES Ltd.,BA0000281632,737.03,731860439
BIS,The Insolvency Service,25/11/2014,Office Supplies and Services,OFFICIAL RECEIVER SERVICES                                                                          ,BANNER BUSINESS SERVICES Ltd.,BA0000281632,962.12,731860439
BIS,The Insolvency Service,25/11/2014,Office Supplies and Services,OFFICIAL RECEIVER SERVICES                                                                          ,BANNER BUSINESS SERVICES Ltd.,BA0000281617,-963.77,731860439
BIS,The Insolvency Service,25/11/2014,Office Supplies and Services,OFFICIAL RECEIVER SERVICES                                                                          ,BANNER BUSINESS SERVICES Ltd.,BA0000281617,-936.92,731860439
BIS,The Insolvency Service,25/11/2014,Office Supplies and Services,OFFICIAL RECEIVER SERVICES                                                                          ,BANNER BUSINESS SERVICES Ltd.,BA0000281617,-428.56,731860439
BIS,The Insolvency Service,25/11/2014,Office Supplies and Services,OFFICIAL RECEIVER SERVICES                                                                          ,BANNER BUSINESS SERVICES Ltd.,BA0000281617,-392.69,731860439
BIS,The Insolvency Service,25/11/2014,Office Supplies and Services,OFFICIAL RECEIVER SERVICES                                                                          ,BANNER BUSINESS SERVICES Ltd.,BA0000281617,-374.87,731860439
BIS,The Insolvency Service,25/11/2014,Office Supplies and Services,OFFICIAL RECEIVER SERVICES                                                                          ,BANNER BUSINESS SERVICES Ltd.,BA0000281617,-338.71,731860439
BIS,The Insolvency Service,25/11/2014,Office Supplies and Services,OFFICIAL RECEIVER SERVICES                                                                          ,BANNER BUSINESS SERVICES Ltd.,BA0000281617,-320.89,731860439
BIS,The Insolvency Service,25/11/2014,Office Supplies and Services,OFFICIAL RECEIVER SERVICES                                                                          ,BANNER BUSINESS SERVICES Ltd.,BA0000281617,-312.66,731860439
BIS,The Insolvency Service,25/11/2014,Office Supplies and Services,OFFICIAL RECEIVER SERVICES                                                                          ,BANNER BUSINESS SERVICES Ltd.,BA0000281617,-273.54,731860439
BIS,The Insolvency Service,25/11/2014,Office Supplies and Services,OFFICIAL RECEIVER SERVICES                                                                          ,BANNER BUSINESS SERVICES Ltd.,BA0000281617,-256.33,731860439
BIS,The Insolvency Service,25/11/2014,Office Supplies and Services,OFFICIAL RECEIVER SERVICES                                                                          ,BANNER BUSINESS SERVICES Ltd.,BA0000281617,-243.24,731860439
BIS,The Insolvency Service,25/11/2014,Office Supplies and Services,OFFICIAL RECEIVER SERVICES                                                                          ,BANNER BUSINESS SERVICES Ltd.,BA0000281617,-220.16,731860439
BIS,The Insolvency Service,25/11/2014,Office Supplies and Services,OFFICIAL RECEIVER SERVICES                                                                          ,BANNER BUSINESS SERVICES Ltd.,BA0000281617,-211.21,731860439
BIS,The Insolvency Service,25/11/2014,Office Supplies and Services,OFFICIAL RECEIVER SERVICES                                                                          ,BANNER BUSINESS SERVICES Ltd.,BA0000281617,-196.20,731860439
BIS,The Insolvency Service,25/11/2014,Office Supplies and Services,OFFICIAL RECEIVER SERVICES                                                                          ,BANNER BUSINESS SERVICES Ltd.,BA0000281617,-80.60,731860439
BIS,The Insolvency Service,25/11/2014,Office Supplies and Services,OFFICIAL RECEIVER SERVICES                                                                          ,BANNER BUSINESS SERVICES Ltd.,BA0000281617,-75.64,731860439
BIS,The Insolvency Service,25/11/2014,Office Supplies and Services,OFFICIAL RECEIVER SERVICES                                                                          ,BANNER BUSINESS SERVICES Ltd.,BA0000281617,-74.93,731860439
BIS,The Insolvency Service,25/11/2014,Office Supplies and Services,OFFICIAL RECEIVER SERVICES                                                                          ,BANNER BUSINESS SERVICES Ltd.,BA0000281617,-37.42,731860439
BIS,The Insolvency Service,25/11/2014,Office Supplies and Services,OFFICIAL RECEIVER SERVICES                                                                          ,BANNER BUSINESS SERVICES Ltd.,BA0000281617,-4.73,731860439
BIS,The Insolvency Service,20/11/2014,Investigation and Enforcement Costs,INVESTIGATIONS & ENFORCEMENT                                                                        ,BDO STOY HAYWARD,BA0000281558,"4,088.13",830847032
BIS,The Insolvency Service,20/11/2014,Investigation and Enforcement Costs,INVESTIGATIONS & ENFORCEMENT                                                                        ,BDO STOY HAYWARD,BA0000281559,"4,087.13",830847032
BIS,The Insolvency Service,17/11/2014,Accommodation,ESTATES,BERKLEY ESTATES LONDON LIMITED,BA0000281485,"3,511.20",
BIS,The Insolvency Service,17/11/2014,Accommodation,ESTATES,BERKLEY ESTATES LONDON LIMITED,BA0000281486,"1,829.00",
BIS,The Insolvency Service,20/11/2014,Accommodation,ESTATES,BERKLEY ESTATES LONDON LIMITED,BA0000281548,-201.77,
BIS,The Insolvency Service,20/11/2014,Accommodation,ESTATES,BERKLEY ESTATES LONDON LIMITED,BA0000281560,"4,588.81",
BIS,The Insolvency Service,06/11/2014,Accommodation,FINANCE AND COMMERCIAL                                                                              ,BERWIN LEIGHTON PAISNER,BA0000281236,"1,900.00",
BIS,The Insolvency Service,13/11/2014,Accommodation,ESTATES,BIS - DEPT. FOR BUSINESS INNOVATION & SKILLS,BA0000281368,"274,868.50",888825550
BIS,The Insolvency Service,13/11/2014,Accommodation,ESTATES,BIS - DEPT. FOR BUSINESS INNOVATION & SKILLS,BA0000281368,"121,749.50",888825550
BIS,The Insolvency Service,13/11/2014,Accommodation,ESTATES,BIS - DEPT. FOR BUSINESS INNOVATION & SKILLS,BA0000281368,"97,206.00",888825550
BIS,The Insolvency Service,18/11/2014,Accommodation,ESTATES,BIS - DEPT. FOR BUSINESS INNOVATION & SKILLS,BA0000281497,"20,704.00",888825550
BIS,The Insolvency Service,18/11/2014,Accommodation,ESTATES,BIS - DEPT. FOR BUSINESS INNOVATION & SKILLS,BA0000281497,"5,263.50",888825550
BIS,The Insolvency Service,18/11/2014,Accommodation,ESTATES,BIS - DEPT. FOR BUSINESS INNOVATION & SKILLS,BA0000281497,"13,112.50",888825550
BIS,The Insolvency Service,18/11/2014,Accommodation,ESTATES                                                                                             ,BIS - DEPT. FOR BUSINESS INNOVATION & SKILLS,BA0000281496,"22,642.00",888825550
BIS,The Insolvency Service,18/11/2014,Accommodation,ESTATES                                                                                             ,BIS - DEPT. FOR BUSINESS INNOVATION & SKILLS,BA0000281496,"7,962.50",888825550
BIS,The Insolvency Service,18/11/2014,Accommodation,ESTATES                                                                                             ,BIS - DEPT. FOR BUSINESS INNOVATION & SKILLS,BA0000281496,"15,814.00",888825550
BIS,The Insolvency Service,11/11/2014,Investigation and Enforcement Costs,INVESTIGATIONS & ENFORCEMENT                                                                        ,BOND DICKINSON                                              ,BA0000281346,"7,602.55",123392627
BIS,The Insolvency Service,12/11/2014,Investigation and Enforcement Costs,INVESTIGATIONS & ENFORCEMENT                                                                        ,BOND DICKINSON                                              ,BA0000281366,"51,274.99",123392627
BIS,The Insolvency Service,12/11/2014,Investigation and Enforcement Costs,INVESTIGATIONS & ENFORCEMENT                                                                        ,BOND DICKINSON                                              ,BA0000281366,"74,281.07",123392627
BIS,The Insolvency Service,12/11/2014,Investigation and Enforcement Costs,INVESTIGATIONS & ENFORCEMENT                                                                        ,BOND DICKINSON                                              ,BA0000281366,"20,483.90",123392627
BIS,The Insolvency Service,12/11/2014,Investigation and Enforcement Costs,INVESTIGATIONS & ENFORCEMENT                                                                        ,BOND DICKINSON                                              ,BA0000281366,"6,922.00",123392627
BIS,The Insolvency Service,12/11/2014,Investigation and Enforcement Costs,INVESTIGATIONS & ENFORCEMENT                                                                        ,BOND DICKINSON                                              ,BA0000281366,"9,495.20",123392627
BIS,The Insolvency Service,12/11/2014,Investigation and Enforcement Costs,INVESTIGATIONS & ENFORCEMENT                                                                        ,BOND DICKINSON                                              ,BA0000281366,"31,942.29",123392627
BIS,The Insolvency Service,12/11/2014,Investigation and Enforcement Costs,INVESTIGATIONS & ENFORCEMENT                                                                        ,BOND DICKINSON                                              ,BA0000281365,"4,200.00",
BIS,The Insolvency Service,18/11/2014,Accommodation,ESTATES,BRITISH GAS BUSINESS,BA0000281515,163.51,684966762
BIS,The Insolvency Service,18/11/2014,Accommodation,ESTATES,BRITISH GAS BUSINESS,BA0000281516,204.30,684966762
BIS,The Insolvency Service,18/11/2014,Accommodation,ESTATES,BRITISH GAS BUSINESS,BA0000281525,129.43,684966762
BIS,The Insolvency Service,18/11/2014,Accommodation,ESTATES,BRITISH GAS BUSINESS,BA0000281526,47.53,684966762
BIS,The Insolvency Service,14/11/2014,Agency Workers,BUSINESS SERVICES DIRECTORATE                                                                       ,BROOK STREET (UK) LTD,BA0000281340,73.82,
BIS,The Insolvency Service,14/11/2014,Agency Workers,BUSINESS SERVICES DIRECTORATE                                                                       ,BROOK STREET (UK) LTD,BA0000281340,181.80,
BIS,The Insolvency Service,14/11/2014,Agency Workers,BUSINESS SERVICES DIRECTORATE                                                                       ,BROOK STREET (UK) LTD,BA0000281340,213.30,
BIS,The Insolvency Service,14/11/2014,Agency Workers,BUSINESS SERVICES DIRECTORATE                                                                       ,BROOK STREET (UK) LTD,BA0000281340,224.36,
BIS,The Insolvency Service,14/11/2014,Agency Workers,BUSINESS SERVICES DIRECTORATE                                                                       ,BROOK STREET (UK) LTD,BA0000281340,227.34,
BIS,The Insolvency Service,14/11/2014,Agency Workers,BUSINESS SERVICES DIRECTORATE                                                                       ,BROOK STREET (UK) LTD,BA0000281340,230.26,
BIS,The Insolvency Service,14/11/2014,Agency Workers,BUSINESS SERVICES DIRECTORATE                                                                       ,BROOK STREET (UK) LTD,BA0000281340,298.78,
BIS,The Insolvency Service,14/11/2014,Agency Workers,BUSINESS SERVICES DIRECTORATE                                                                       ,BROOK STREET (UK) LTD,BA0000281340,303.84,
BIS,The Insolvency Service,14/11/2014,Agency Workers,BUSINESS SERVICES DIRECTORATE                                                                       ,BROOK STREET (UK) LTD,BA0000281340,303.84,
BIS,The Insolvency Service,14/11/2014,Agency Workers,BUSINESS SERVICES DIRECTORATE                                                                       ,BROOK STREET (UK) LTD,BA0000281340,315.12,
BIS,The Insolvency Service,14/11/2014,Agency Workers,BUSINESS SERVICES DIRECTORATE                                                                       ,BROOK STREET (UK) LTD,BA0000281340,319.94,
BIS,The Insolvency Service,14/11/2014,Agency Workers,BUSINESS SERVICES DIRECTORATE                                                                       ,BROOK STREET (UK) LTD,BA0000281340,341.64,
BIS,The Insolvency Service,14/11/2014,Agency Workers,BUSINESS SERVICES DIRECTORATE                                                                       ,BROOK STREET (UK) LTD,BA0000281340,349.02,
BIS,The Insolvency Service,14/11/2014,Agency Workers,BUSINESS SERVICES DIRECTORATE                                                                       ,BROOK STREET (UK) LTD,BA0000281340,354.48,
BIS,The Insolvency Service,14/11/2014,Agency Workers,BUSINESS SERVICES DIRECTORATE                                                                       ,BROOK STREET (UK) LTD,BA0000281340,364.18,
BIS,The Insolvency Service,14/11/2014,Agency Workers,BUSINESS SERVICES DIRECTORATE                                                                       ,BROOK STREET (UK) LTD,BA0000281340,368.96,
BIS,The Insolvency Service,14/11/2014,Agency Workers,BUSINESS SERVICES DIRECTORATE                                                                       ,BROOK STREET (UK) LTD,BA0000281340,368.96,
BIS,The Insolvency Service,14/11/2014,Agency Workers,BUSINESS SERVICES DIRECTORATE                                                                       ,BROOK STREET (UK) LTD,BA0000281340,368.96,
BIS,The Insolvency Service,14/11/2014,Agency Workers,BUSINESS SERVICES DIRECTORATE                                                                       ,BROOK STREET (UK) LTD,BA0000281340,373.85,
BIS,The Insolvency Service,14/11/2014,Agency Workers,BUSINESS SERVICES DIRECTORATE                                                                       ,BROOK STREET (UK) LTD,BA0000281340,373.94,
BIS,The Insolvency Service,14/11/2014,Agency Workers,BUSINESS SERVICES DIRECTORATE                                                                       ,BROOK STREET (UK) LTD,BA0000281340,374.40,
BIS,The Insolvency Service,14/11/2014,Agency Workers,BUSINESS SERVICES DIRECTORATE                                                                       ,BROOK STREET (UK) LTD,BA0000281340,374.74,
BIS,The Insolvency Service,14/11/2014,Agency Workers,BUSINESS SERVICES DIRECTORATE                                                                       ,BROOK STREET (UK) LTD,BA0000281340,374.74,
BIS,The Insolvency Service,14/11/2014,Agency Workers,BUSINESS SERVICES DIRECTORATE                                                                       ,BROOK STREET (UK) LTD,BA0000281340,375.18,
BIS,The Insolvency Service,14/11/2014,Agency Workers,BUSINESS SERVICES DIRECTORATE                                                                       ,BROOK STREET (UK) LTD,BA0000281340,376.82,
BIS,The Insolvency Service,14/11/2014,Agency Workers,BUSINESS SERVICES DIRECTORATE                                                                       ,BROOK STREET (UK) LTD,BA0000281340,379.80,
BIS,The Insolvency Service,14/11/2014,Agency Workers,BUSINESS SERVICES DIRECTORATE                                                                       ,BROOK STREET (UK) LTD,BA0000281340,382.50,
BIS,The Insolvency Service,14/11/2014,Agency Workers,BUSINESS SERVICES DIRECTORATE                                                                       ,BROOK STREET (UK) LTD,BA0000281340,405.26,
BIS,The Insolvency Service,14/11/2014,Agency Workers,BUSINESS SERVICES DIRECTORATE                                                                       ,BROOK STREET (UK) LTD,BA0000281340,415.75,
BIS,The Insolvency Service,14/11/2014,Agency Workers,BUSINESS SERVICES DIRECTORATE                                                                       ,BROOK STREET (UK) LTD,BA0000281340,423.67,
BIS,The Insolvency Service,14/11/2014,Agency Workers,BUSINESS SERVICES DIRECTORATE                                                                       ,BROOK STREET (UK) LTD,BA0000281340,426.60,
BIS,The Insolvency Service,14/11/2014,Agency Workers,BUSINESS SERVICES DIRECTORATE                                                                       ,BROOK STREET (UK) LTD,BA0000281340,437.36,
BIS,The Insolvency Service,14/11/2014,Agency Workers,BUSINESS SERVICES DIRECTORATE                                                                       ,BROOK STREET (UK) LTD,BA0000281340,446.32,
BIS,The Insolvency Service,14/11/2014,Agency Workers,BUSINESS SERVICES DIRECTORATE                                                                       ,BROOK STREET (UK) LTD,BA0000281340,448.44,
BIS,The Insolvency Service,14/11/2014,Agency Workers,BUSINESS SERVICES DIRECTORATE                                                                       ,BROOK STREET (UK) LTD,BA0000281340,451.99,
BIS,The Insolvency Service,14/11/2014,Agency Workers,BUSINESS SERVICES DIRECTORATE                                                                       ,BROOK STREET (UK) LTD,BA0000281340,452.44,
BIS,The Insolvency Service,14/11/2014,Agency Workers,BUSINESS SERVICES DIRECTORATE                                                                       ,BROOK STREET (UK) LTD,BA0000281340,456.36,
BIS,The Insolvency Service,14/11/2014,Agency Workers,BUSINESS SERVICES DIRECTORATE                                                                       ,BROOK STREET (UK) LTD,BA0000281340,488.64,
BIS,The Insolvency Service,14/11/2014,Agency Workers,BUSINESS SERVICES DIRECTORATE                                                                       ,BROOK STREET (UK) LTD,BA0000281340,497.70,
BIS,The Insolvency Service,14/11/2014,Agency Workers,BUSINESS SERVICES DIRECTORATE                                                                       ,BROOK STREET (UK) LTD,BA0000281340,498.31,
BIS,The Insolvency Service,14/11/2014,Agency Workers,BUSINESS SERVICES DIRECTORATE                                                                       ,BROOK STREET (UK) LTD,BA0000281340,504.80,
BIS,The Insolvency Service,14/11/2014,Agency Workers,BUSINESS SERVICES DIRECTORATE                                                                       ,BROOK STREET (UK) LTD,BA0000281340,511.92,
BIS,The Insolvency Service,14/11/2014,Agency Workers,BUSINESS SERVICES DIRECTORATE                                                                       ,BROOK STREET (UK) LTD,BA0000281340,526.14,
BIS,The Insolvency Service,14/11/2014,Agency Workers,BUSINESS SERVICES DIRECTORATE                                                                       ,BROOK STREET (UK) LTD,BA0000281340,526.14,
BIS,The Insolvency Service,14/11/2014,Agency Workers,BUSINESS SERVICES DIRECTORATE                                                                       ,BROOK STREET (UK) LTD,BA0000281340,530.58,
BIS,The Insolvency Service,14/11/2014,Agency Workers,BUSINESS SERVICES DIRECTORATE                                                                       ,BROOK STREET (UK) LTD,BA0000281340,530.58,
BIS,The Insolvency Service,14/11/2014,Agency Workers,BUSINESS SERVICES DIRECTORATE                                                                       ,BROOK STREET (UK) LTD,BA0000281340,530.58,
BIS,The Insolvency Service,14/11/2014,Agency Workers,BUSINESS SERVICES DIRECTORATE                                                                       ,BROOK STREET (UK) LTD,BA0000281340,530.58,
BIS,The Insolvency Service,14/11/2014,Agency Workers,BUSINESS SERVICES DIRECTORATE                                                                       ,BROOK STREET (UK) LTD,BA0000281340,530.58,
BIS,The Insolvency Service,14/11/2014,Agency Workers,BUSINESS SERVICES DIRECTORATE                                                                       ,BROOK STREET (UK) LTD,BA0000281340,531.02,
BIS,The Insolvency Service,14/11/2014,Agency Workers,BUSINESS SERVICES DIRECTORATE                                                                       ,BROOK STREET (UK) LTD,BA0000281340,533.24,
BIS,The Insolvency Service,14/11/2014,Agency Workers,BUSINESS SERVICES DIRECTORATE                                                                       ,BROOK STREET (UK) LTD,BA0000281340,538.20,
BIS,The Insolvency Service,14/11/2014,Agency Workers,BUSINESS SERVICES DIRECTORATE                                                                       ,BROOK STREET (UK) LTD,BA0000281340,538.20,
BIS,The Insolvency Service,14/11/2014,Agency Workers,BUSINESS SERVICES DIRECTORATE                                                                       ,BROOK STREET (UK) LTD,BA0000281340,669.94,
BIS,The Insolvency Service,14/11/2014,Agency Workers,BUSINESS SERVICES DIRECTORATE                                                                       ,BROOK STREET (UK) LTD,BA0000281340,795.80,
BIS,The Insolvency Service,14/11/2014,Agency Workers,BUSINESS SERVICES DIRECTORATE                                                                       ,BROOK STREET (UK) LTD,BA0000281310,54.54,
BIS,The Insolvency Service,14/11/2014,Agency Workers,INFORMATION TECHNOLOGY                                                                              ,BROOK STREET (UK) LTD,BA0000281340,232.61,
BIS,The Insolvency Service,14/11/2014,Agency Workers,INFORMATION TECHNOLOGY                                                                              ,BROOK STREET (UK) LTD,BA0000281340,275.12,
BIS,The Insolvency Service,14/11/2014,Agency Workers,INFORMATION TECHNOLOGY                                                                              ,BROOK STREET (UK) LTD,BA0000281340,319.33,
BIS,The Insolvency Service,14/11/2014,Agency Workers,INFORMATION TECHNOLOGY                                                                              ,BROOK STREET (UK) LTD,BA0000281340,369.41,
BIS,The Insolvency Service,14/11/2014,Agency Workers,INFORMATION TECHNOLOGY                                                                              ,BROOK STREET (UK) LTD,BA0000281340,374.40,
BIS,The Insolvency Service,14/11/2014,Agency Workers,INFORMATION TECHNOLOGY                                                                              ,BROOK STREET (UK) LTD,BA0000281340,415.75,
BIS,The Insolvency Service,14/11/2014,Agency Workers,INFORMATION TECHNOLOGY                                                                              ,BROOK STREET (UK) LTD,BA0000281340,427.98,
BIS,The Insolvency Service,14/11/2014,Agency Workers,INFORMATION TECHNOLOGY                                                                              ,BROOK STREET (UK) LTD,BA0000281340,443.26,
BIS,The Insolvency Service,14/11/2014,Agency Workers,INFORMATION TECHNOLOGY                                                                              ,BROOK STREET (UK) LTD,BA0000281340,448.44,
BIS,The Insolvency Service,14/11/2014,Agency Workers,INFORMATION TECHNOLOGY                                                                              ,BROOK STREET (UK) LTD,BA0000281340,460.36,
BIS,The Insolvency Service,14/11/2014,Agency Workers,INFORMATION TECHNOLOGY                                                                              ,BROOK STREET (UK) LTD,BA0000281340,534.06,
BIS,The Insolvency Service,14/11/2014,Agency Workers,INFORMATION TECHNOLOGY                                                                              ,BROOK STREET (UK) LTD,BA0000281340,879.84,
BIS,The Insolvency Service,14/11/2014,Agency Workers,INFORMATION TECHNOLOGY                                                                              ,BROOK STREET (UK) LTD,BA0000281340,"1,017.90",
BIS,The Insolvency Service,14/11/2014,Agency Workers,INFORMATION TECHNOLOGY                                                                              ,BROOK STREET (UK) LTD,BA0000281340,"1,357.95",
BIS,The Insolvency Service,14/11/2014,Agency Workers,INVESTIGATIONS & ENFORCEMENT                                                                        ,BROOK STREET (UK) LTD,BA0000281340,227.88,
BIS,The Insolvency Service,14/11/2014,Agency Workers,INVESTIGATIONS & ENFORCEMENT                                                                        ,BROOK STREET (UK) LTD,BA0000281340,297.20,
BIS,The Insolvency Service,14/11/2014,Agency Workers,INVESTIGATIONS & ENFORCEMENT                                                                        ,BROOK STREET (UK) LTD,BA0000281340,369.41,
BIS,The Insolvency Service,14/11/2014,Agency Workers,INVESTIGATIONS & ENFORCEMENT                                                                        ,BROOK STREET (UK) LTD,BA0000281340,460.36,
BIS,The Insolvency Service,14/11/2014,Agency Workers,INVESTIGATIONS & ENFORCEMENT                                                                        ,BROOK STREET (UK) LTD,BA0000281340,530.58,
BIS,The Insolvency Service,14/11/2014,Agency Workers,INVESTIGATIONS & ENFORCEMENT                                                                        ,BROOK STREET (UK) LTD,BA0000281340,616.31,
BIS,The Insolvency Service,14/11/2014,Agency Workers,INVESTIGATIONS & ENFORCEMENT                                                                        ,BROOK STREET (UK) LTD,BA0000281340,811.58,
BIS,The Insolvency Service,14/11/2014,Agency Workers,INVESTIGATIONS & ENFORCEMENT                                                                        ,BROOK STREET (UK) LTD,BA0000281340,822.00,
BIS,The Insolvency Service,14/11/2014,Agency Workers,INVESTIGATIONS & ENFORCEMENT                                                                        ,BROOK STREET (UK) LTD,BA0000281340,"1,004.33",
BIS,The Insolvency Service,14/11/2014,Agency Workers,INVESTIGATIONS & ENFORCEMENT                                                                        ,BROOK STREET (UK) LTD,BA0000281340,"1,007.41",
BIS,The Insolvency Service,14/11/2014,Agency Workers,INVESTIGATIONS & ENFORCEMENT                                                                        ,BROOK STREET (UK) LTD,BA0000281340,"1,009.66",
BIS,The Insolvency Service,14/11/2014,Agency Workers,INVESTIGATIONS & ENFORCEMENT                                                                        ,BROOK STREET (UK) LTD,BA0000281340,"1,091.93",
BIS,The Insolvency Service,14/11/2014,Agency Workers,INVESTIGATIONS & ENFORCEMENT                                                                        ,BROOK STREET (UK) LTD,BA0000281340,"1,098.64",
BIS,The Insolvency Service,14/11/2014,Agency Workers,INVESTIGATIONS & ENFORCEMENT                                                                        ,BROOK STREET (UK) LTD,BA0000281340,"1,206.80",
BIS,The Insolvency Service,14/11/2014,Agency Workers,OFFICIAL RECEIVER SERVICES                                                                          ,BROOK STREET (UK) LTD,BA0000281340,234.62,
BIS,The Insolvency Service,14/11/2014,Agency Workers,OFFICIAL RECEIVER SERVICES                                                                          ,BROOK STREET (UK) LTD,BA0000281340,363.60,
BIS,The Insolvency Service,14/11/2014,Agency Workers,OFFICIAL RECEIVER SERVICES                                                                          ,BROOK STREET (UK) LTD,BA0000281340,366.84,
BIS,The Insolvency Service,14/11/2014,Agency Workers,OFFICIAL RECEIVER SERVICES                                                                          ,BROOK STREET (UK) LTD,BA0000281340,368.96,
BIS,The Insolvency Service,14/11/2014,Agency Workers,OFFICIAL RECEIVER SERVICES                                                                          ,BROOK STREET (UK) LTD,BA0000281340,368.96,
BIS,The Insolvency Service,14/11/2014,Agency Workers,OFFICIAL RECEIVER SERVICES                                                                          ,BROOK STREET (UK) LTD,BA0000281340,373.94,
BIS,The Insolvency Service,14/11/2014,Agency Workers,OFFICIAL RECEIVER SERVICES                                                                          ,BROOK STREET (UK) LTD,BA0000281340,379.62,
BIS,The Insolvency Service,14/11/2014,Agency Workers,OFFICIAL RECEIVER SERVICES                                                                          ,BROOK STREET (UK) LTD,BA0000281340,379.80,
BIS,The Insolvency Service,14/11/2014,Agency Workers,OFFICIAL RECEIVER SERVICES                                                                          ,BROOK STREET (UK) LTD,BA0000281340,421.86,
BIS,The Insolvency Service,14/11/2014,Agency Workers,OFFICIAL RECEIVER SERVICES                                                                          ,BROOK STREET (UK) LTD,BA0000281340,426.60,
BIS,The Insolvency Service,14/11/2014,Agency Workers,OFFICIAL RECEIVER SERVICES                                                                          ,BROOK STREET (UK) LTD,BA0000281340,430.20,
BIS,The Insolvency Service,14/11/2014,Agency Workers,OFFICIAL RECEIVER SERVICES                                                                          ,BROOK STREET (UK) LTD,BA0000281340,430.56,
BIS,The Insolvency Service,14/11/2014,Agency Workers,OFFICIAL RECEIVER SERVICES                                                                          ,BROOK STREET (UK) LTD,BA0000281340,447.92,
BIS,The Insolvency Service,14/11/2014,Agency Workers,OFFICIAL RECEIVER SERVICES                                                                          ,BROOK STREET (UK) LTD,BA0000281340,454.50,
BIS,The Insolvency Service,14/11/2014,Agency Workers,OFFICIAL RECEIVER SERVICES                                                                          ,BROOK STREET (UK) LTD,BA0000281340,458.10,
BIS,The Insolvency Service,14/11/2014,Agency Workers,OFFICIAL RECEIVER SERVICES                                                                          ,BROOK STREET (UK) LTD,BA0000281340,458.54,
BIS,The Insolvency Service,14/11/2014,Agency Workers,OFFICIAL RECEIVER SERVICES                                                                          ,BROOK STREET (UK) LTD,BA0000281340,490.58,
BIS,The Insolvency Service,14/11/2014,Agency Workers,OFFICIAL RECEIVER SERVICES                                                                          ,BROOK STREET (UK) LTD,BA0000281340,499.45,
BIS,The Insolvency Service,14/11/2014,Agency Workers,OFFICIAL RECEIVER SERVICES                                                                          ,BROOK STREET (UK) LTD,BA0000281340,515.47,
BIS,The Insolvency Service,14/11/2014,Agency Workers,OFFICIAL RECEIVER SERVICES                                                                          ,BROOK STREET (UK) LTD,BA0000281340,537.74,
BIS,The Insolvency Service,14/11/2014,Agency Workers,OFFICIAL RECEIVER SERVICES                                                                          ,BROOK STREET (UK) LTD,BA0000281340,538.20,
BIS,The Insolvency Service,14/11/2014,Agency Workers,OFFICIAL RECEIVER SERVICES                                                                          ,BROOK STREET (UK) LTD,BA0000281340,541.78,
BIS,The Insolvency Service,14/11/2014,Agency Workers,OFFICIAL RECEIVER SERVICES                                                                          ,BROOK STREET (UK) LTD,BA0000281340,818.64,
BIS,The Insolvency Service,14/11/2014,Agency Workers,PEOPLE & CAPABILITY                                                                                 ,BROOK STREET (UK) LTD,BA0000281340,533.24,
BIS,The Insolvency Service,14/11/2014,Agency Workers,PROJECTS                                                                                            ,BROOK STREET (UK) LTD,BA0000281340,551.02,
BIS,The Insolvency Service,14/11/2014,Agency Workers,PROJECTS                                                                                            ,BROOK STREET (UK) LTD,BA0000281340,344.35,
BIS,The Insolvency Service,10/11/2014,Telecoms,BUSINESS SERVICES DIRECTORATE                                                                       ,BT CONFERENCING SERVICES,BA0000281308,11.71,245719348
BIS,The Insolvency Service,10/11/2014,Telecoms,CUSTOMER AND COMMUNICATIONS                                                                         ,BT CONFERENCING SERVICES,BA0000281308,14.07,245719348
BIS,The Insolvency Service,10/11/2014,Telecoms,FINANCE AND COMMERCIAL                                                                              ,BT CONFERENCING SERVICES,BA0000281308,25.80,245719348
BIS,The Insolvency Service,10/11/2014,Telecoms,FINANCE AND COMMERCIAL                                                                              ,BT CONFERENCING SERVICES,BA0000281308,121.25,245719348
BIS,The Insolvency Service,10/11/2014,Telecoms,FINANCE AND COMMERCIAL                                                                              ,BT CONFERENCING SERVICES,BA0000281308,233.12,245719348
BIS,The Insolvency Service,10/11/2014,Telecoms,INFORMATION TECHNOLOGY                                                                              ,BT CONFERENCING SERVICES,BA0000281308,7.96,245719348
BIS,The Insolvency Service,10/11/2014,Telecoms,INFORMATION TECHNOLOGY                                                                              ,BT CONFERENCING SERVICES,BA0000281308,165.95,245719348
BIS,The Insolvency Service,10/11/2014,Telecoms,OFFICIAL RECEIVER SERVICES                                                                          ,BT CONFERENCING SERVICES,BA0000281308,0.08,245719348
BIS,The Insolvency Service,10/11/2014,Telecoms,OFFICIAL RECEIVER SERVICES                                                                          ,BT CONFERENCING SERVICES,BA0000281308,5.88,245719348
BIS,The Insolvency Service,10/11/2014,Telecoms,OFFICIAL RECEIVER SERVICES                                                                          ,BT CONFERENCING SERVICES,BA0000281308,13.23,245719348
BIS,The Insolvency Service,10/11/2014,Telecoms,OFFICIAL RECEIVER SERVICES                                                                          ,BT CONFERENCING SERVICES,BA0000281308,14.39,245719348
BIS,The Insolvency Service,10/11/2014,Telecoms,OFFICIAL RECEIVER SERVICES                                                                          ,BT CONFERENCING SERVICES,BA0000281308,14.69,245719348
BIS,The Insolvency Service,10/11/2014,Telecoms,OFFICIAL RECEIVER SERVICES                                                                          ,BT CONFERENCING SERVICES,BA0000281308,18.34,245719348
BIS,The Insolvency Service,10/11/2014,Telecoms,OFFICIAL RECEIVER SERVICES                                                                          ,BT CONFERENCING SERVICES,BA0000281308,30.78,245719348
BIS,The Insolvency Service,10/11/2014,Telecoms,OFFICIAL RECEIVER SERVICES                                                                          ,BT CONFERENCING SERVICES,BA0000281308,44.23,245719348
BIS,The Insolvency Service,01/11/2014,Telecoms,BUSINESS SERVICES DIRECTORATE                                                                       ,BT TELEPHONE PAYMENT CENTRE,BA0000281721,102.89,245719348
BIS,The Insolvency Service,01/11/2014,Telecoms,FINANCE AND COMMERCIAL                                                                              ,BT TELEPHONE PAYMENT CENTRE,BA0000281721,-16.18,245719348
BIS,The Insolvency Service,01/11/2014,Telecoms,FINANCE AND COMMERCIAL                                                                              ,BT TELEPHONE PAYMENT CENTRE,BA0000281721,79.19,245719348
BIS,The Insolvency Service,01/11/2014,Telecoms,FINANCE AND COMMERCIAL                                                                              ,BT TELEPHONE PAYMENT CENTRE,BA0000281721,117.08,245719348
BIS,The Insolvency Service,01/11/2014,Telecoms,FINANCE AND COMMERCIAL                                                                              ,BT TELEPHONE PAYMENT CENTRE,BA0000281721,120.98,245719348
BIS,The Insolvency Service,01/11/2014,Telecoms,FINANCE AND COMMERCIAL                                                                              ,BT TELEPHONE PAYMENT CENTRE,BA0000281721,-13.95,245719348
BIS,The Insolvency Service,01/11/2014,Telecoms,INFORMATION TECHNOLOGY                                                                              ,BT TELEPHONE PAYMENT CENTRE,BA0000281721,71.19,245719348
BIS,The Insolvency Service,01/11/2014,Telecoms,INFORMATION TECHNOLOGY                                                                              ,BT TELEPHONE PAYMENT CENTRE,BA0000281721,81.32,245719348
BIS,The Insolvency Service,01/11/2014,Telecoms,INFORMATION TECHNOLOGY                                                                              ,BT TELEPHONE PAYMENT CENTRE,BA0000281721,135.72,245719348
BIS,The Insolvency Service,01/11/2014,Telecoms,INFORMATION TECHNOLOGY                                                                              ,BT TELEPHONE PAYMENT CENTRE,BA0000281721,90.52,245719348
BIS,The Insolvency Service,01/11/2014,Telecoms,INFORMATION TECHNOLOGY                                                                              ,BT TELEPHONE PAYMENT CENTRE,BA0000281721,76.07,245719348
BIS,The Insolvency Service,01/11/2014,Telecoms,INFORMATION TECHNOLOGY                                                                              ,BT TELEPHONE PAYMENT CENTRE,BA0000281721,83.30,245719348
BIS,The Insolvency Service,01/11/2014,Telecoms,INFORMATION TECHNOLOGY                                                                              ,BT TELEPHONE PAYMENT CENTRE,BA0000281721,86.33,245719348
BIS,The Insolvency Service,01/11/2014,Telecoms,INFORMATION TECHNOLOGY                                                                              ,BT TELEPHONE PAYMENT CENTRE,BA0000281721,91.73,245719348
BIS,The Insolvency Service,21/11/2014,Telecoms,OFFICIAL RECEIVER SERVICES                                                                          ,BT TELEPHONE PAYMENT CENTRE,BA0000281607,93.60,245719348
BIS,The Insolvency Service,11/11/2014,Investigation and Enforcement Costs,INVESTIGATIONS & ENFORCEMENT                                                                        ,BURNESS PAULL & WILLIAMSONS SOLICITORS,BA0000281344,"41,290.00",268398111
BIS,The Insolvency Service,11/11/2014,Investigation and Enforcement Costs,INVESTIGATIONS & ENFORCEMENT                                                                        ,BURNESS PAULL & WILLIAMSONS SOLICITORS,BA0000281344,"8,326.70",268398111
BIS,The Insolvency Service,11/11/2014,Investigation and Enforcement Costs,INVESTIGATIONS & ENFORCEMENT                                                                        ,BURNESS PAULL & WILLIAMSONS SOLICITORS,BA0000281344,"2,755.10",268398111
BIS,The Insolvency Service,07/11/2014,Accommodation,ESTATES,C NICKERSON,BA0000281260,50.00,
BIS,The Insolvency Service,14/11/2014,Accommodation,ESTATES,C NICKERSON,BA0000281440,30.00,
BIS,The Insolvency Service,06/11/2014,Conferences,FINANCE AND COMMERCIAL                                                                              ,CALDER                                                      ,BA0000281226,"1,063.44",482027849
BIS,The Insolvency Service,06/11/2014,Conferences,FINANCE AND COMMERCIAL                                                                              ,CALDER                                                      ,BA0000281222,945.24,482027849
BIS,The Insolvency Service,06/11/2014,Conferences,FINANCE AND COMMERCIAL                                                                              ,CALDER                                                      ,BA0000281227,"1,447.43",482027849
BIS,The Insolvency Service,06/11/2014,Conferences,FINANCE AND COMMERCIAL                                                                              ,CALDER                                                      ,BA0000281228,"1,063.44",482027849
BIS,The Insolvency Service,06/11/2014,Conferences,FINANCE AND COMMERCIAL                                                                              ,CALDER                                                      ,BA0000281229,"1,779.03",482027849
BIS,The Insolvency Service,25/11/2014,Conferences,FINANCE AND COMMERCIAL                                                                              ,CALDER                                                      ,BA0000281683,254.46,482027849
BIS,The Insolvency Service,11/11/2014,Conferences,OFFICIAL RECEIVER SERVICES                                                                          ,CALDER                                                      ,BA0000281326,373.05,482027849
BIS,The Insolvency Service,04/11/2014,Training Costs,FINANCE AND COMMERCIAL                                                                              ,CAPITA BUSINESS SERVICES LTD,BA0000281135,170.00,618184140
BIS,The Insolvency Service,25/11/2014,Training Costs,FINANCE AND COMMERCIAL                                                                              ,CAPITA BUSINESS SERVICES LTD,BA0000281625,"3,292.00",618184140
BIS,The Insolvency Service,25/11/2014,Training Costs,FINANCE AND COMMERCIAL                                                                              ,CAPITA BUSINESS SERVICES LTD,BA0000281626,"3,833.00",618184140
BIS,The Insolvency Service,25/11/2014,Training Costs,FINANCE AND COMMERCIAL                                                                              ,CAPITA BUSINESS SERVICES LTD,BA0000281627,"3,353.00",618184140
BIS,The Insolvency Service,25/11/2014,Training Costs,FINANCE AND COMMERCIAL                                                                              ,CAPITA BUSINESS SERVICES LTD,BA0000281638,170.00,618184140
BIS,The Insolvency Service,25/11/2014,Training Costs,FINANCE AND COMMERCIAL                                                                              ,CAPITA BUSINESS SERVICES LTD,BA0000281639,170.00,618184140
BIS,The Insolvency Service,25/11/2014,Training Costs,FINANCE AND COMMERCIAL                                                                              ,CAPITA BUSINESS SERVICES LTD,BA0000281640,134.00,618184140
BIS,The Insolvency Service,25/11/2014,Training Costs,FINANCE AND COMMERCIAL                                                                              ,CAPITA BUSINESS SERVICES LTD,BA0000281687,133.00,618184140
BIS,The Insolvency Service,26/11/2014,Training Costs,FINANCE AND COMMERCIAL                                                                              ,CAPITA BUSINESS SERVICES LTD,BA0000281702,"3,353.00",618184140
BIS,The Insolvency Service,04/11/2014,Training Costs,PEOPLE & CAPABILITY                                                                                 ,CAPITA BUSINESS SERVICES LTD,BA0000281136,150.00,618184140
BIS,The Insolvency Service,04/11/2014,Training Costs,PEOPLE & CAPABILITY                                                                                 ,CAPITA BUSINESS SERVICES LTD,BA0000281139,86.00,618184140
BIS,The Insolvency Service,05/11/2014,Training Costs,PEOPLE & CAPABILITY                                                                                 ,CAPITA BUSINESS SERVICES LTD,BA0000281195,120.00,618184140
BIS,The Insolvency Service,07/11/2014,Training Costs,PEOPLE & CAPABILITY                                                                                 ,CAPITA BUSINESS SERVICES LTD,BA0000281268,755.00,618184140
BIS,The Insolvency Service,25/11/2014,Training Costs,PEOPLE & CAPABILITY                                                                                 ,CAPITA BUSINESS SERVICES LTD,BA0000281629,"-3,475.20",618184140
BIS,The Insolvency Service,25/11/2014,Training Costs,PEOPLE & CAPABILITY                                                                                 ,CAPITA BUSINESS SERVICES LTD,BA0000281641,178.81,618184140
BIS,The Insolvency Service,25/11/2014,Training Costs,PEOPLE & CAPABILITY                                                                                 ,CAPITA BUSINESS SERVICES LTD,BA0000281642,178.81,618184140
BIS,The Insolvency Service,25/11/2014,Training Costs,PEOPLE & CAPABILITY                                                                                 ,CAPITA BUSINESS SERVICES LTD,BA0000281643,178.81,618184140
BIS,The Insolvency Service,25/11/2014,Training Costs,PEOPLE & CAPABILITY                                                                                 ,CAPITA BUSINESS SERVICES LTD,BA0000281644,178.81,618184140
BIS,The Insolvency Service,25/11/2014,Training Costs,PEOPLE & CAPABILITY                                                                                 ,CAPITA BUSINESS SERVICES LTD,BA0000281645,752.00,618184140
BIS,The Insolvency Service,25/11/2014,Training Costs,PEOPLE & CAPABILITY                                                                                 ,CAPITA BUSINESS SERVICES LTD,BA0000281646,126.00,618184140
BIS,The Insolvency Service,25/11/2014,Training Costs,PEOPLE & CAPABILITY                                                                                 ,CAPITA BUSINESS SERVICES LTD,BA0000281630,"2,895.81",618184140
BIS,The Insolvency Service,25/11/2014,Training Costs,PEOPLE & CAPABILITY                                                                                 ,CAPITA BUSINESS SERVICES LTD,BA0000281688,773.00,618184140
BIS,The Insolvency Service,25/11/2014,Training Costs,PEOPLE & CAPABILITY                                                                                 ,CAPITA BUSINESS SERVICES LTD,BA0000281689,256.00,618184140
BIS,The Insolvency Service,10/11/2014,Agency Workers,FINANCE AND COMMERCIAL                                                                              ,CAPITA RESOURCING LTD,BA0000281300,"3,900.00",618184140
BIS,The Insolvency Service,11/11/2014,Agency Workers,FINANCE AND COMMERCIAL                                                                              ,CAPITA RESOURCING LTD,BA0000281347,"14,922.14",618184140
BIS,The Insolvency Service,25/11/2014,Agency Workers,FINANCE AND COMMERCIAL                                                                              ,CAPITA RESOURCING LTD,BA0000281698,"3,900.00",618184140
BIS,The Insolvency Service,07/11/2014,Accommodation,ESTATES,CBRE LIMITED,BA0000281252,"4,446.28",
BIS,The Insolvency Service,07/11/2014,Accommodation,ESTATES,CBRE LIMITED,BA0000281253,"4,535.22",
BIS,The Insolvency Service,25/11/2014,Accommodation,ESTATES,CBRE LIMITED,BA0000281700,"164,512.50",
BIS,The Insolvency Service,25/11/2014,Accommodation,ESTATES,CBRE LIMITED,BA0000281701,"164,880.00",
BIS,The Insolvency Service,25/11/2014,Accommodation,ESTATES,CBRE LIMITED,BA0000281700,"18,641.91",
BIS,The Insolvency Service,25/11/2014,Accommodation,ESTATES,CBRE LIMITED,BA0000281701,"18,671.18",
BIS,The Insolvency Service,25/11/2014,Accommodation,ESTATES,CBRE LIMITED,BA0000281681,"3,370.54",
BIS,The Insolvency Service,25/11/2014,Accommodation,ESTATES,CBRE LIMITED,BA0000281697,"3,252.27",
BIS,The Insolvency Service,12/11/2014,Accommodation,ESTATES,CBRE LIMITED,BA0000281374,740.11,
BIS,The Insolvency Service,12/11/2014,Accommodation,ESTATES,CBRE LIMITED,BA0000281375,728.59,
BIS,The Insolvency Service,12/11/2014,Accommodation,ESTATES,CBRE LIMITED,BA0000281362,"1,784.05",
BIS,The Insolvency Service,10/11/2014,Accommodation,ESTATES,CBRE RICHARD ELLIS CBRE LTD,BA0000281295,"5,270.52",
BIS,The Insolvency Service,04/11/2014,Computer and IT Systems,INFORMATION TECHNOLOGY                                                                              ,CERTES COMPUTING LIMITED,BA0000281133,"10,852.25",
BIS,The Insolvency Service,07/11/2014,Training Costs,PEOPLE & CAPABILITY                                                                                 ,CIPD ENTERPRISES LTD,BA0000281249,870.00,756202737
BIS,The Insolvency Service,12/11/2014,Travel and Subsistence,BUSINESS SERVICES DIRECTORATE                                                                       ,CITY CABS (EDINBURGH) LTD,BA0000281371,56.78,270679436
BIS,The Insolvency Service,12/11/2014,Postage,FINANCE AND COMMERCIAL                                                                              ,CITY SPRINT UK LTD,BA0000281376,210.32,
BIS,The Insolvency Service,14/11/2014,Postage,OFFICIAL RECEIVER SERVICES                                                                          ,CITY SPRINT UK LTD,BA0000281416,95.25,
BIS,The Insolvency Service,14/11/2014,Postage,OFFICIAL RECEIVER SERVICES                                                                          ,CITY SPRINT UK LTD,BA0000281417,78.88,
BIS,The Insolvency Service,11/11/2014,Investigation and Enforcement Costs,INVESTIGATIONS & ENFORCEMENT                                                                        ,CLARKE WILLMOTT SOLICITORS,BA0000281339,384.81,129913060
BIS,The Insolvency Service,18/11/2014,Telecoms,BUSINESS SERVICES DIRECTORATE                                                                       ,CLOUDXL,BA0000281501,"1,931.81",897386841
BIS,The Insolvency Service,01/11/2014,Travel and Subsistence,OFFICIAL RECEIVER SERVICES                                                                          ,COLCHESTER BOROUGH COUNCIL                                  ,BA0000281721,2.70,
BIS,The Insolvency Service,01/11/2014,Insolvency Case Related Costs,OFFICIAL RECEIVER SERVICES                                                                          ,COLEGIO REGISTRADORES C,BA0000281721,8.69,
BIS,The Insolvency Service,12/11/2014,Insolvency Case Related Costs,BUSINESS SERVICES DIRECTORATE                                                                       ,COMPANIES HOUSE,BA0000281369,129.00,GD255
BIS,The Insolvency Service,12/11/2014,Insolvency Case Related Costs,BUSINESS SERVICES DIRECTORATE                                                                       ,COMPANIES HOUSE,BA0000281370,340.00,GD255
BIS,The Insolvency Service,04/11/2014,Insolvency Case Related Costs,INVESTIGATIONS & ENFORCEMENT                                                                        ,COMPANIES HOUSE,BA0000281147,379.00,GD255
BIS,The Insolvency Service,04/11/2014,Insolvency Case Related Costs,INVESTIGATIONS & ENFORCEMENT                                                                        ,COMPANIES HOUSE,BA0000281155,"1,263.00",GD255
BIS,The Insolvency Service,04/11/2014,Insolvency Case Related Costs,INVESTIGATIONS & ENFORCEMENT                                                                        ,COMPANIES HOUSE,BA0000281148,25.00,GD255
BIS,The Insolvency Service,04/11/2014,Insolvency Case Related Costs,INVESTIGATIONS & ENFORCEMENT                                                                        ,COMPANIES HOUSE,BA0000281149,972.00,GD255
BIS,The Insolvency Service,04/11/2014,Insolvency Case Related Costs,OFFICIAL RECEIVER SERVICES                                                                          ,COMPANIES HOUSE,BA0000281140,67.00,GD255
BIS,The Insolvency Service,04/11/2014,Insolvency Case Related Costs,OFFICIAL RECEIVER SERVICES                                                                          ,COMPANIES HOUSE,BA0000281157,16.00,GD255
BIS,The Insolvency Service,05/11/2014,Insolvency Case Related Costs,OFFICIAL RECEIVER SERVICES                                                                          ,COMPANIES HOUSE,BA0000281196,17.00,GD255
BIS,The Insolvency Service,07/11/2014,Insolvency Case Related Costs,OFFICIAL RECEIVER SERVICES                                                                          ,COMPANIES HOUSE,BA0000281257,92.00,GD255
BIS,The Insolvency Service,07/11/2014,Insolvency Case Related Costs,OFFICIAL RECEIVER SERVICES                                                                          ,COMPANIES HOUSE,BA0000281262,45.00,GD255
BIS,The Insolvency Service,07/11/2014,Insolvency Case Related Costs,OFFICIAL RECEIVER SERVICES                                                                          ,COMPANIES HOUSE,BA0000281263,33.00,GD255
BIS,The Insolvency Service,07/11/2014,Insolvency Case Related Costs,OFFICIAL RECEIVER SERVICES                                                                          ,COMPANIES HOUSE,BA0000281264,29.00,GD255
BIS,The Insolvency Service,07/11/2014,Insolvency Case Related Costs,OFFICIAL RECEIVER SERVICES                                                                          ,COMPANIES HOUSE,BA0000281265,33.00,GD255
BIS,The Insolvency Service,07/11/2014,Insolvency Case Related Costs,OFFICIAL RECEIVER SERVICES                                                                          ,COMPANIES HOUSE,BA0000281270,83.00,GD255
BIS,The Insolvency Service,10/11/2014,Insolvency Case Related Costs,OFFICIAL RECEIVER SERVICES                                                                          ,COMPANIES HOUSE,BA0000281307,103.00,GD255
BIS,The Insolvency Service,10/11/2014,Insolvency Case Related Costs,OFFICIAL RECEIVER SERVICES                                                                          ,COMPANIES HOUSE,BA0000281309,89.00,GD255
BIS,The Insolvency Service,11/11/2014,Insolvency Case Related Costs,OFFICIAL RECEIVER SERVICES                                                                          ,COMPANIES HOUSE,BA0000281324,15.00,GD255
BIS,The Insolvency Service,11/11/2014,Insolvency Case Related Costs,OFFICIAL RECEIVER SERVICES                                                                          ,COMPANIES HOUSE,BA0000281330,5.00,GD255
BIS,The Insolvency Service,11/11/2014,Insolvency Case Related Costs,OFFICIAL RECEIVER SERVICES                                                                          ,COMPANIES HOUSE,BA0000281337,178.00,GD255
BIS,The Insolvency Service,12/11/2014,Insolvency Case Related Costs,OFFICIAL RECEIVER SERVICES                                                                          ,COMPANIES HOUSE,BA0000281372,44.00,GD255
BIS,The Insolvency Service,12/11/2014,Insolvency Case Related Costs,OFFICIAL RECEIVER SERVICES                                                                          ,COMPANIES HOUSE,BA0000281377,114.00,GD255
BIS,The Insolvency Service,14/11/2014,Insolvency Case Related Costs,OFFICIAL RECEIVER SERVICES                                                                          ,COMPANIES HOUSE,BA0000281412,4.00,GD255
BIS,The Insolvency Service,14/11/2014,Insolvency Case Related Costs,OFFICIAL RECEIVER SERVICES                                                                          ,COMPANIES HOUSE,BA0000281413,91.00,GD255
BIS,The Insolvency Service,14/11/2014,Insolvency Case Related Costs,OFFICIAL RECEIVER SERVICES                                                                          ,COMPANIES HOUSE,BA0000281444,17.00,GD255
BIS,The Insolvency Service,14/11/2014,Insolvency Case Related Costs,OFFICIAL RECEIVER SERVICES                                                                          ,COMPANIES HOUSE,BA0000281446,108.00,GD255
BIS,The Insolvency Service,17/11/2014,Insolvency Case Related Costs,OFFICIAL RECEIVER SERVICES                                                                          ,COMPANIES HOUSE,BA0000281472,53.00,GD255
BIS,The Insolvency Service,17/11/2014,Insolvency Case Related Costs,OFFICIAL RECEIVER SERVICES                                                                          ,COMPANIES HOUSE,BA0000281473,166.00,GD255
BIS,The Insolvency Service,17/11/2014,Insolvency Case Related Costs,OFFICIAL RECEIVER SERVICES                                                                          ,COMPANIES HOUSE,BA0000281477,33.00,GD255
BIS,The Insolvency Service,17/11/2014,Insolvency Case Related Costs,OFFICIAL RECEIVER SERVICES                                                                          ,COMPANIES HOUSE,BA0000281478,192.00,GD255
BIS,The Insolvency Service,17/11/2014,Insolvency Case Related Costs,OFFICIAL RECEIVER SERVICES                                                                          ,COMPANIES HOUSE,BA0000281479,55.00,GD255
BIS,The Insolvency Service,17/11/2014,Insolvency Case Related Costs,OFFICIAL RECEIVER SERVICES                                                                          ,COMPANIES HOUSE,BA0000281480,33.00,GD255
BIS,The Insolvency Service,17/11/2014,Insolvency Case Related Costs,OFFICIAL RECEIVER SERVICES                                                                          ,COMPANIES HOUSE,BA0000281481,73.00,GD255
BIS,The Insolvency Service,17/11/2014,Insolvency Case Related Costs,OFFICIAL RECEIVER SERVICES                                                                          ,COMPANIES HOUSE,BA0000281482,18.00,GD255
BIS,The Insolvency Service,18/11/2014,Insolvency Case Related Costs,OFFICIAL RECEIVER SERVICES                                                                          ,COMPANIES HOUSE,BA0000281469,71.00,GD255
BIS,The Insolvency Service,18/11/2014,Insolvency Case Related Costs,OFFICIAL RECEIVER SERVICES                                                                          ,COMPANIES HOUSE,BA0000281514,37.00,GD255
BIS,The Insolvency Service,18/11/2014,Insolvency Case Related Costs,OFFICIAL RECEIVER SERVICES                                                                          ,COMPANIES HOUSE,BA0000281523,24.00,GD255
BIS,The Insolvency Service,21/11/2014,Insolvency Case Related Costs,OFFICIAL RECEIVER SERVICES                                                                          ,COMPANIES HOUSE,BA0000281603,11.00,GD255
BIS,The Insolvency Service,21/11/2014,Insolvency Case Related Costs,OFFICIAL RECEIVER SERVICES                                                                          ,COMPANIES HOUSE,BA0000281604,35.00,GD255
BIS,The Insolvency Service,26/11/2014,Insolvency Case Related Costs,OFFICIAL RECEIVER SERVICES                                                                          ,COMPANIES HOUSE,BA0000281724,17.00,GD255
BIS,The Insolvency Service,14/11/2014,Accommodation,PEOPLE & CAPABILITY                                                                                 ,CRANFIELD MANAGEMENT DEVELOPMENT CENTRE                     ,BA0000281403,"1,021.30",
BIS,The Insolvency Service,01/11/2014,Office Machinery,FINANCE AND COMMERCIAL                                                                              ,CURRYS,BA0000281721,29.99,
BIS,The Insolvency Service,18/11/2014,Accommodation,ESTATES,DEPTARTMENT OF ENERGY AND CLIMATE CHANGE,BA0000281224,"11,472.00",
BIS,The Insolvency Service,17/11/2014,Employee Related Costs,PEOPLE & CAPABILITY                                                                                 ,DISCLOSURE SCOTLAND,BA0000281471,325.00,
BIS,The Insolvency Service,01/11/2014,Travel and Subsistence,FINANCE AND COMMERCIAL,DOLLAR PHOTO CLUB                                           ,BA0000281721,3.50,
BIS,The Insolvency Service,01/11/2014,Insolvency Case Related Costs,OFFICIAL RECEIVER SERVICES                                                                          ,DOLLAR PHOTO CLUB                                           ,BA0000281721,0.24,
BIS,The Insolvency Service,01/11/2014,Insolvency Case Related Costs,OFFICIAL RECEIVER SERVICES                                                                          ,DOLLAR PHOTO CLUB                                           ,BA0000281721,0.80,
BIS,The Insolvency Service,01/11/2014,Office Supplies and Services,FINANCE AND COMMERCIAL                                                                              ,DON RUFFLES LIMITED,BA0000281721,138.00,703001706
BIS,The Insolvency Service,04/11/2014,Investigation and Enforcement Costs,INVESTIGATIONS & ENFORCEMENT                                                                        ,DWF                                                         ,BA0000281152,"6,329.50",
BIS,The Insolvency Service,04/11/2014,Investigation and Enforcement Costs,INVESTIGATIONS & ENFORCEMENT                                                                        ,DWF                                                         ,BA0000281151,"5,710.50",
BIS,The Insolvency Service,07/11/2014,Investigation and Enforcement Costs,INVESTIGATIONS & ENFORCEMENT                                                                        ,DWF                                                         ,BA0000281255,"7,698.00",
BIS,The Insolvency Service,12/11/2014,Postage,INFORMATION TECHNOLOGY                                                                              ,DX NETWORK SERVICES LTD,BA0000281351,136.33,849741385
BIS,The Insolvency Service,12/11/2014,Postage,INFORMATION TECHNOLOGY                                                                              ,DX NETWORK SERVICES LTD,BA0000281351,367.36,849741385
BIS,The Insolvency Service,14/11/2014,Postage,INFORMATION TECHNOLOGY                                                                              ,DX NETWORK SERVICES LTD,BA0000281424,750.00,849741385
BIS,The Insolvency Service,12/11/2014,Postage,OFFICIAL RECEIVER SERVICES                                                                          ,DX NETWORK SERVICES LTD,BA0000281351,10.15,849741385
BIS,The Insolvency Service,12/11/2014,Postage,OFFICIAL RECEIVER SERVICES                                                                          ,DX NETWORK SERVICES LTD,BA0000281351,21.51,849741385
BIS,The Insolvency Service,12/11/2014,Postage,OFFICIAL RECEIVER SERVICES                                                                          ,DX NETWORK SERVICES LTD,BA0000281351,39.10,849741385
BIS,The Insolvency Service,12/11/2014,Postage,OFFICIAL RECEIVER SERVICES                                                                          ,DX NETWORK SERVICES LTD,BA0000281351,85.93,849741385
BIS,The Insolvency Service,12/11/2014,Postage,OFFICIAL RECEIVER SERVICES                                                                          ,DX NETWORK SERVICES LTD,BA0000281351,165.96,849741385
BIS,The Insolvency Service,12/11/2014,Postage,OFFICIAL RECEIVER SERVICES                                                                          ,DX NETWORK SERVICES LTD,BA0000281351,173.55,849741385
BIS,The Insolvency Service,12/11/2014,Postage,OFFICIAL RECEIVER SERVICES                                                                          ,DX NETWORK SERVICES LTD,BA0000281351,176.55,849741385
BIS,The Insolvency Service,12/11/2014,Postage,OFFICIAL RECEIVER SERVICES                                                                          ,DX NETWORK SERVICES LTD,BA0000281351,188.63,849741385
BIS,The Insolvency Service,12/11/2014,Postage,OFFICIAL RECEIVER SERVICES                                                                          ,DX NETWORK SERVICES LTD,BA0000281351,233.67,849741385
BIS,The Insolvency Service,12/11/2014,Postage,OFFICIAL RECEIVER SERVICES                                                                          ,DX NETWORK SERVICES LTD,BA0000281351,246.83,849741385
BIS,The Insolvency Service,12/11/2014,Postage,OFFICIAL RECEIVER SERVICES                                                                          ,DX NETWORK SERVICES LTD,BA0000281351,255.03,849741385
BIS,The Insolvency Service,12/11/2014,Postage,OFFICIAL RECEIVER SERVICES                                                                          ,DX NETWORK SERVICES LTD,BA0000281351,279.09,849741385
BIS,The Insolvency Service,12/11/2014,Postage,OFFICIAL RECEIVER SERVICES                                                                          ,DX NETWORK SERVICES LTD,BA0000281351,288.53,849741385
BIS,The Insolvency Service,12/11/2014,Postage,OFFICIAL RECEIVER SERVICES                                                                          ,DX NETWORK SERVICES LTD,BA0000281351,300.33,849741385
BIS,The Insolvency Service,12/11/2014,Postage,OFFICIAL RECEIVER SERVICES                                                                          ,DX NETWORK SERVICES LTD,BA0000281351,341.36,849741385
BIS,The Insolvency Service,12/11/2014,Postage,OFFICIAL RECEIVER SERVICES                                                                          ,DX NETWORK SERVICES LTD,BA0000281351,383.89,849741385
BIS,The Insolvency Service,12/11/2014,Postage,OFFICIAL RECEIVER SERVICES                                                                          ,DX NETWORK SERVICES LTD,BA0000281351,402.13,849741385
BIS,The Insolvency Service,12/11/2014,Postage,OFFICIAL RECEIVER SERVICES                                                                          ,DX NETWORK SERVICES LTD,BA0000281351,479.54,849741385
BIS,The Insolvency Service,12/11/2014,Postage,OFFICIAL RECEIVER SERVICES                                                                          ,DX NETWORK SERVICES LTD,BA0000281351,576.95,849741385
BIS,The Insolvency Service,12/11/2014,Postage,OFFICIAL RECEIVER SERVICES                                                                          ,DX NETWORK SERVICES LTD,BA0000281351,752.69,849741385
BIS,The Insolvency Service,12/11/2014,Postage,OFFICIAL RECEIVER SERVICES                                                                          ,DX NETWORK SERVICES LTD,BA0000281351,782.77,849741385
BIS,The Insolvency Service,12/11/2014,Postage,OFFICIAL RECEIVER SERVICES                                                                          ,DX NETWORK SERVICES LTD,BA0000281351,817.74,849741385
BIS,The Insolvency Service,03/11/2014,Accommodation,ESTATES,E.ON,BA0000281051,"1,377.72",559097889
BIS,The Insolvency Service,03/11/2014,Accommodation,ESTATES,E.ON,BA0000281055,223.79,559097889
BIS,The Insolvency Service,17/11/2014,Office Supplies and Services,BUSINESS SERVICES DIRECTORATE                                                                       ,EC GROUP,BA0000281468,"1,336.33",235525471
BIS,The Insolvency Service,21/11/2014,Accommodation,OFFICIAL RECEIVER SERVICES                                                                          ,EC GROUP,BA0000281606,405.24,235525471
BIS,The Insolvency Service,14/11/2014,Accommodation,FINANCE AND COMMERCIAL                                                                              ,EC HARRIS LLP,BA0000281409,"3,300.00",660476038
BIS,The Insolvency Service,21/11/2014,Accommodation,FINANCE AND COMMERCIAL                                                                              ,EC HARRIS LLP,BA0000281600,"10,500.00",660476038
BIS,The Insolvency Service,25/11/2014,Accommodation,FINANCE AND COMMERCIAL                                                                              ,EC HARRIS LLP,BA0000281633,"3,930.00",660476038
BIS,The Insolvency Service,25/11/2014,Accommodation,FINANCE AND COMMERCIAL                                                                              ,EC HARRIS LLP,BA0000281634,"6,120.00",660476038
BIS,The Insolvency Service,25/11/2014,Accommodation,FINANCE AND COMMERCIAL                                                                              ,EC HARRIS LLP,BA0000281635,"3,060.00",660476038
BIS,The Insolvency Service,25/11/2014,Accommodation,FINANCE AND COMMERCIAL                                                                              ,EC HARRIS LLP,BA0000281636,"3,360.00",660476038
BIS,The Insolvency Service,25/11/2014,Accommodation,FINANCE AND COMMERCIAL                                                                              ,EC HARRIS LLP,BA0000281637,"5,640.00",660476038
BIS,The Insolvency Service,01/11/2014,Travel and Subsistence,BUSINESS SERVICES DIRECTORATE                                                                       ,EC MAINLINE CO T/O,BA0000281721,49.50,
BIS,The Insolvency Service,01/11/2014,Travel and Subsistence,OFFICIAL RECEIVER SERVICES                                                                          ,ECML NEWCASTLE PARKING,BA0000281721,7.00,
BIS,The Insolvency Service,28/11/2014,Telecoms,ESTATES,EE LTD                       ,BA0000281760,"6,156.26",771592016
BIS,The Insolvency Service,28/11/2014,Insolvency Case Related Costs,BUSINESS SERVICES DIRECTORATE                                                                       ,EQUIFAX LTD                                                 ,BA0000281782,"1,654.36",
BIS,The Insolvency Service,28/11/2014,Insolvency Case Related Costs,BUSINESS SERVICES DIRECTORATE                                                                       ,EQUIFAX LTD                                                 ,BA0000281783,"1,654.36",
BIS,The Insolvency Service,28/11/2014,Insolvency Case Related Costs,INVESTIGATIONS & ENFORCEMENT                                                                        ,EQUIFAX LTD                                                 ,BA0000281782,"8,869.20",
BIS,The Insolvency Service,28/11/2014,Insolvency Case Related Costs,INVESTIGATIONS & ENFORCEMENT                                                                        ,EQUIFAX LTD                                                 ,BA0000281783,"8,869.20",
BIS,The Insolvency Service,28/11/2014,Insolvency Case Related Costs,OFFICIAL RECEIVER SERVICES                                                                          ,EQUIFAX LTD                                                 ,BA0000281782,"16,476.44",
BIS,The Insolvency Service,28/11/2014,Insolvency Case Related Costs,OFFICIAL RECEIVER SERVICES                                                                          ,EQUIFAX LTD                                                 ,BA0000281783,"16,476.44",
BIS,The Insolvency Service,13/11/2014,Accommodation,ESTATES,EQUITA                                                      ,BA0000281408,"4,015.16",618184140
BIS,The Insolvency Service,18/11/2014,Accommodation,ESTATES,F&C REIT ASSET MANAGEMENT PLC,BA0000281504,"1,100.30",209938729
BIS,The Insolvency Service,01/11/2014,Telecoms,BUSINESS SERVICES DIRECTORATE                                                                       ,FASTHOSTS INTERNET,BA0000281721,105.91,
BIS,The Insolvency Service,01/11/2014,Travel and Subsistence,INVESTIGATIONS & ENFORCEMENT                                                                        ,FIRST GTR WESTERN,BA0000281721,5.50,
BIS,The Insolvency Service,01/11/2014,Accommodation,OFFICIAL RECEIVER SERVICES                                                                          ,FIRSTAID4LESS.CO.UK                                         ,BA0000281721,12.96,
BIS,The Insolvency Service,12/11/2014,Accommodation,OFFICIAL RECEIVER SERVICES                                                                          ,FRANK G. BOWEN LTD,BA0000281373,118.62,238504366
BIS,The Insolvency Service,20/11/2014,Insolvency Case Related Costs,OFFICIAL RECEIVER SERVICES                                                                          ,FRANK G. BOWEN LTD,BA0000281552,75.60,238504366
BIS,The Insolvency Service,20/11/2014,Investigation and Enforcement Costs,INVESTIGATIONS & ENFORCEMENT                                                                        ,FTI FORENSIC ACCOUNTING LTD,BA0000281565,930.59,943642024
BIS,The Insolvency Service,25/11/2014,Computer and IT Systems,INFORMATION TECHNOLOGY                                                                              ,G4S FIRE & SECURITY SYSTEMS (UK) LTD                        ,BA0000281647,246.42,238560256
BIS,The Insolvency Service,12/11/2014,Accommodation,FINANCE AND COMMERCIAL                                                                              ,GARLAND MANAGEMENT LIMITED                                  ,BA0000281367,"20,971.20",523183860
BIS,The Insolvency Service,07/11/2014,Investigation and Enforcement Costs,CUSTOMER AND COMMUNICATIONS                                                                         ,GORKANA GROUP LTD                                           ,BA0000281259,622.79,757158012
BIS,The Insolvency Service,07/11/2014,Training Costs,PEOPLE & CAPABILITY                                                                                 ,GOVNET COMMUNICATIONS,BA0000281266,198.00,686277974
BIS,The Insolvency Service,04/11/2014,Investigation and Enforcement Costs,INVESTIGATIONS & ENFORCEMENT                                                                        ,GRANT THORNTON,BA0000281150,"4,350.00",835586102
BIS,The Insolvency Service,01/11/2014,Travel and Subsistence,OFFICIAL RECEIVER SERVICES                                                                          ,GREATER ANGLIA RAILWAY                                      ,BA0000281721,38.60,
BIS,The Insolvency Service,01/11/2014,Travel and Subsistence,OFFICIAL RECEIVER SERVICES                                                                          ,GREATER ANGLIA RAILWAY                                      ,BA0000281721,38.60,
BIS,The Insolvency Service,01/11/2014,Accommodation,OFFICIAL RECEIVER SERVICES                                                                          ,GREENHAM TRADING LTD,BA0000281721,39.59,823820932
BIS,The Insolvency Service,21/11/2014,Accommodation,ESTATES,GVA                                                         ,BA0000281588,"46,156.50",657719590
BIS,The Insolvency Service,21/11/2014,Accommodation,ESTATES,GVA                                                         ,BA0000281588,"17,637.50",657719590
BIS,The Insolvency Service,14/11/2014,Employee Related Costs,PEOPLE & CAPABILITY                                                                                 ,HEALTH MANAGEMENT LTD,BA0000281435,"1,401.84",792250621
BIS,The Insolvency Service,14/11/2014,Employee Related Costs,PEOPLE & CAPABILITY                                                                                 ,HEALTH MANAGEMENT LTD,BA0000281436,"3,526.20",792250621
BIS,The Insolvency Service,28/11/2014,Employee Related Costs,PEOPLE & CAPABILITY                                                                                 ,HEALTH MANAGEMENT LTD,BA0000281751,"1,195.16",792250621
BIS,The Insolvency Service,28/11/2014,Employee Related Costs,PEOPLE & CAPABILITY                                                                                 ,HEALTH MANAGEMENT LTD,BA0000281770,87.50,792250621
BIS,The Insolvency Service,28/11/2014,Employee Related Costs,PEOPLE & CAPABILITY                                                                                 ,HEALTH MANAGEMENT LTD,BA0000281752,"2,493.76",792250621
BIS,The Insolvency Service,26/11/2014,Insolvency Case Related Costs,FINANCE AND COMMERCIAL,HMCTS,BA0000281551,160.00,
BIS,The Insolvency Service,18/11/2014,Investigation and Enforcement Costs,OFFICIAL RECEIVER SERVICES                                                                          ,HMCTS,BA0000281305,280.00,
BIS,The Insolvency Service,26/11/2014,Investigation and Enforcement Costs,OFFICIAL RECEIVER SERVICES                                                                          ,HMCTS,BA0000281517,480.00,
BIS,The Insolvency Service,26/11/2014,Investigation and Enforcement Costs,OFFICIAL RECEIVER SERVICES                                                                          ,HMCTS,BA0000281694,480.00,
BIS,The Insolvency Service,28/11/2014,Investigation and Enforcement Costs,OFFICIAL RECEIVER SERVICES                                                                          ,HMCTS,BA0000281766,280.00,
BIS,The Insolvency Service,28/11/2014,Investigation and Enforcement Costs,OFFICIAL RECEIVER SERVICES                                                                          ,HMCTS,BA0000281767,280.00,
BIS,The Insolvency Service,28/11/2014,Investigation and Enforcement Costs,OFFICIAL RECEIVER SERVICES                                                                          ,HMCTS,BA0000281771,280.00,
BIS,The Insolvency Service,26/11/2014,Investigation and Enforcement Costs,OFFICIAL RECEIVER SERVICES                                                                          ,HMCTS                                                       ,BA0000281690,280.00,
BIS,The Insolvency Service,01/11/2014,Travel and Subsistence,FINANCE AND COMMERCIAL,HOLIDAY INN - MILTON KEYNES,BA0000281721,66.00,507943924
BIS,The Insolvency Service,07/11/2014,Investigation and Enforcement Costs,INVESTIGATIONS & ENFORCEMENT                                                                        ,HOWES PERCIVAL,BA0000281271,8.00,119523573
BIS,The Insolvency Service,07/11/2014,Investigation and Enforcement Costs,INVESTIGATIONS & ENFORCEMENT                                                                        ,HOWES PERCIVAL,BA0000281271,"2,504.20",119523573
BIS,The Insolvency Service,07/11/2014,Investigation and Enforcement Costs,INVESTIGATIONS & ENFORCEMENT                                                                        ,HOWES PERCIVAL,BA0000281275,169.00,119523573
BIS,The Insolvency Service,07/11/2014,Investigation and Enforcement Costs,INVESTIGATIONS & ENFORCEMENT                                                                        ,HOWES PERCIVAL,BA0000281275,"47,700.21",119523573
BIS,The Insolvency Service,07/11/2014,Investigation and Enforcement Costs,INVESTIGATIONS & ENFORCEMENT                                                                        ,HOWES PERCIVAL,BA0000281276,"2,929.40",119523573
BIS,The Insolvency Service,07/11/2014,Investigation and Enforcement Costs,INVESTIGATIONS & ENFORCEMENT                                                                        ,HOWES PERCIVAL,BA0000281273,48.00,119523573
BIS,The Insolvency Service,07/11/2014,Investigation and Enforcement Costs,INVESTIGATIONS & ENFORCEMENT                                                                        ,HOWES PERCIVAL,BA0000281278,"16,846.60",119523573
BIS,The Insolvency Service,07/11/2014,Investigation and Enforcement Costs,INVESTIGATIONS & ENFORCEMENT                                                                        ,HOWES PERCIVAL,BA0000281279,"12,269.51",119523573
BIS,The Insolvency Service,07/11/2014,Investigation and Enforcement Costs,INVESTIGATIONS & ENFORCEMENT                                                                        ,HOWES PERCIVAL,BA0000281280,"53,626.40",119523573
BIS,The Insolvency Service,11/11/2014,Investigation and Enforcement Costs,INVESTIGATIONS & ENFORCEMENT                                                                        ,HOWES PERCIVAL,BA0000281341,"46,797.01",119523573
BIS,The Insolvency Service,06/11/2014,Insolvency Case Related Costs,OFFICIAL RECEIVER SERVICES                                                                          ,HPI LTD,BA0000281221,4.27,942407139
BIS,The Insolvency Service,07/11/2014,Insolvency Case Related Costs,OFFICIAL RECEIVER SERVICES                                                                          ,HPI LTD,BA0000281235,3.60,942407139
BIS,The Insolvency Service,07/11/2014,Insolvency Case Related Costs,OFFICIAL RECEIVER SERVICES                                                                          ,HPI LTD,BA0000281281,114.02,942407139
BIS,The Insolvency Service,11/11/2014,Insolvency Case Related Costs,OFFICIAL RECEIVER SERVICES                                                                          ,HPI LTD,BA0000281328,60.50,942407139
BIS,The Insolvency Service,18/11/2014,Insolvency Case Related Costs,OFFICIAL RECEIVER SERVICES                                                                          ,HPI LTD,BA0000281507,36.91,942407139
BIS,The Insolvency Service,18/11/2014,Insolvency Case Related Costs,OFFICIAL RECEIVER SERVICES                                                                          ,HPI LTD,BA0000281508,30.70,942407139
BIS,The Insolvency Service,25/11/2014,Insolvency Case Related Costs,OFFICIAL RECEIVER SERVICES                                                                          ,HPI LTD,BA0000281692,23.39,942407139
BIS,The Insolvency Service,26/11/2014,Insolvency Case Related Costs,OFFICIAL RECEIVER SERVICES                                                                          ,HPI LTD,BA0000281728,64.32,942407139
BIS,The Insolvency Service,01/11/2014,Travel and Subsistence,FINANCE AND COMMERCIAL,HRG UK,BA0000281721,5.81,
BIS,The Insolvency Service,01/11/2014,Travel and Subsistence,FINANCE AND COMMERCIAL,HRG UK,BA0000281721,114.98,
BIS,The Insolvency Service,01/11/2014,Travel and Subsistence,FINANCE AND COMMERCIAL,HRG UK,BA0000281721,110.00,
BIS,The Insolvency Service,01/11/2014,Travel and Subsistence,FINANCE AND COMMERCIAL,HRG UK,BA0000281721,78.00,
BIS,The Insolvency Service,01/11/2014,Travel and Subsistence,FINANCE AND COMMERCIAL,HRG UK,BA0000281721,120.00,
BIS,The Insolvency Service,01/11/2014,Travel and Subsistence,FINANCE AND COMMERCIAL,HRG UK,BA0000281721,63.25,
BIS,The Insolvency Service,01/11/2014,Travel and Subsistence,FINANCE AND COMMERCIAL,HRG UK,BA0000281721,80.10,
BIS,The Insolvency Service,01/11/2014,Travel and Subsistence,FINANCE AND COMMERCIAL,HRG UK,BA0000281721,127.30,
BIS,The Insolvency Service,01/11/2014,Travel and Subsistence,FINANCE AND COMMERCIAL,HRG UK,BA0000281721,104.98,
BIS,The Insolvency Service,01/11/2014,Travel and Subsistence,FINANCE AND COMMERCIAL,HRG UK,BA0000281721,5.75,
BIS,The Insolvency Service,01/11/2014,Travel and Subsistence,FINANCE AND COMMERCIAL,HRG UK,BA0000281721,6.91,
BIS,The Insolvency Service,01/11/2014,Travel and Subsistence,FINANCE AND COMMERCIAL,HRG UK,BA0000281721,298.68,
BIS,The Insolvency Service,01/11/2014,Travel and Subsistence,FINANCE AND COMMERCIAL,HRG UK,BA0000281721,5.31,
BIS,The Insolvency Service,01/11/2014,Travel and Subsistence,FINANCE AND COMMERCIAL,HRG UK,BA0000281721,30.58,
BIS,The Insolvency Service,01/11/2014,Travel and Subsistence,FINANCE AND COMMERCIAL,HRG UK,BA0000281721,5.79,
BIS,The Insolvency Service,01/11/2014,Travel and Subsistence,FINANCE AND COMMERCIAL,HRG UK,BA0000281721,5.81,
BIS,The Insolvency Service,01/11/2014,Travel and Subsistence,FINANCE AND COMMERCIAL,HRG UK,BA0000281721,109.98,
BIS,The Insolvency Service,01/11/2014,Travel and Subsistence,FINANCE AND COMMERCIAL,HRG UK,BA0000281721,114.98,
BIS,The Insolvency Service,01/11/2014,Travel and Subsistence,FINANCE AND COMMERCIAL,HRG UK,BA0000281721,209.50,
BIS,The Insolvency Service,10/11/2014,Agency Workers,FINANCE AND COMMERCIAL,HUDSON GLOBAL RESOURCES LTD,BA0000281297,"2,247.36",
BIS,The Insolvency Service,14/11/2014,Agency Workers,FINANCE AND COMMERCIAL,HUDSON GLOBAL RESOURCES LTD,BA0000281437,"2,247.36",
BIS,The Insolvency Service,21/11/2014,Insolvency Case Related Costs,FINANCE AND COMMERCIAL,INSOLVENCY SERVICE,BA0000281601,"6,349.92",
BIS,The Insolvency Service,21/11/2014,Insolvency Case Related Costs,FINANCE AND COMMERCIAL,INSOLVENCY SERVICE,BA0000281602,"10,016.26",
BIS,The Insolvency Service,04/11/2014,Insolvency Case Related Costs,OFFICIAL RECEIVER SERVICES                                                                          ,INSOLVENCY SERVICE,BA0000281138,20.00,
BIS,The Insolvency Service,17/11/2014,Conferences,INVESTIGATIONS & ENFORCEMENT                                                                        ,ITSA LIMITED,BA0000281470,673.87,795862660
BIS,The Insolvency Service,17/11/2014,Telecoms,OFFICIAL RECEIVER SERVICES                                                                          ,KCOM GROUP PLC,BA0000281475,432.50,647235137
BIS,The Insolvency Service,17/11/2014,Telecoms,OFFICIAL RECEIVER SERVICES                                                                          ,KCOM GROUP PLC,BA0000281476,81.00,647235137
BIS,The Insolvency Service,04/11/2014,Accounting and Banking,FINANCE AND COMMERCIAL,KDS UK LTD,BA0000281132,"2,786.40",776463881
BIS,The Insolvency Service,01/11/2014,Telecoms,INFORMATION TECHNOLOGY                                                                              ,KINGSTON COMMUNICATIONS,BA0000281721,67.10,647235137
BIS,The Insolvency Service,01/11/2014,Telecoms,INFORMATION TECHNOLOGY                                                                              ,KINGSTON COMMUNICATIONS,BA0000281721,72.00,647235137
BIS,The Insolvency Service,01/11/2014,Telecoms,INFORMATION TECHNOLOGY                                                                              ,KINGSTON COMMUNICATIONS,BA0000281721,72.72,647235137
BIS,The Insolvency Service,05/11/2014,Employee Related Costs,PEOPLE & CAPABILITY                                                                                 ,KINNARPS (UK) LIMITED,BA0000281200,288.60,222560789
BIS,The Insolvency Service,05/11/2014,Employee Related Costs,PEOPLE & CAPABILITY                                                                                 ,KINNARPS (UK) LIMITED,BA0000281201,43.20,222560789
BIS,The Insolvency Service,14/11/2014,Accounting and Banking,FINANCE AND COMMERCIAL,KYPERA LTD,BA0000281438,"3,300.00",813905437
BIS,The Insolvency Service,14/11/2014,Accounting and Banking,FINANCE AND COMMERCIAL,KYPERA LTD,BA0000281439,"5,100.00",813905437
BIS,The Insolvency Service,07/11/2014,Agency Workers,INFORMATION TECHNOLOGY                                                                              ,LA INTERNATIONAL COMPUTER CONSULTANTS LTD,BA0000281251,"12,356.14",
BIS,The Insolvency Service,11/11/2014,Office Supplies and Services,BUSINESS SERVICES DIRECTORATE                                                                       ,LEXISNEXIS UK (LEXISNEXIS BUTTERWORTHS),BA0000281320,995.45,730859520
BIS,The Insolvency Service,11/11/2014,Office Supplies and Services,BUSINESS SERVICES DIRECTORATE                                                                       ,LEXISNEXIS UK (LEXISNEXIS BUTTERWORTHS),BA0000281321,375.00,730859520
BIS,The Insolvency Service,25/11/2014,Training Costs,PEOPLE & CAPABILITY                                                                                 ,LIGHTBULB LEARNING LTD,BA0000281624,"8,568.00",803998007
BIS,The Insolvency Service,01/11/2014,Travel and Subsistence,INVESTIGATIONS & ENFORCEMENT                                                                        ,LONDON & SOUTH EAS,BA0000281721,11.40,
BIS,The Insolvency Service,01/11/2014,Travel and Subsistence,INVESTIGATIONS & ENFORCEMENT                                                                        ,LONDON & SOUTH EAS,BA0000281721,8.90,
BIS,The Insolvency Service,01/11/2014,Travel and Subsistence,INVESTIGATIONS & ENFORCEMENT                                                                        ,LONDON & SOUTH EAS,BA0000281721,11.40,
BIS,The Insolvency Service,01/11/2014,Travel and Subsistence,OFFICIAL RECEIVER SERVICES                                                                          ,LONDON & SOUTH EAS,BA0000281721,20.00,
BIS,The Insolvency Service,01/11/2014,Travel and Subsistence,INVESTIGATIONS & ENFORCEMENT                                                                        ,LUL TICKET MACHINE,BA0000281721,8.90,
BIS,The Insolvency Service,01/11/2014,Travel and Subsistence,INVESTIGATIONS & ENFORCEMENT                                                                        ,LUL TICKET MACHINE,BA0000281721,20.00,
BIS,The Insolvency Service,01/11/2014,Travel and Subsistence,OFFICIAL RECEIVER SERVICES                                                                          ,LUL TICKET MACHINE,BA0000281721,11.40,
BIS,The Insolvency Service,01/11/2014,Travel and Subsistence,OFFICIAL RECEIVER SERVICES                                                                          ,LUL TICKET MACHINE,BA0000281721,9.00,
BIS,The Insolvency Service,01/11/2014,Travel and Subsistence,OFFICIAL RECEIVER SERVICES                                                                          ,LUL TICKET MACHINE,BA0000281721,8.90,
BIS,The Insolvency Service,01/11/2014,Office Machinery,OFFICIAL RECEIVER SERVICES                                                                          ,MAPLIN MECHANICAL SERVICES LTD,BA0000281721,19.68,
BIS,The Insolvency Service,07/11/2014,Agency Workers,FINANCE AND COMMERCIAL                                                                              ,METHODS PROFESSIONAL SERVICES LTD                           ,BA0000281247,"1,204.20",859140314
BIS,The Insolvency Service,07/11/2014,Agency Workers,FINANCE AND COMMERCIAL                                                                              ,METHODS PROFESSIONAL SERVICES LTD                           ,BA0000281248,"1,806.30",859140314
BIS,The Insolvency Service,20/11/2014,Agency Workers,FINANCE AND COMMERCIAL                                                                              ,METHODS PROFESSIONAL SERVICES LTD                           ,BA0000281563,"12,945.15",859140314
BIS,The Insolvency Service,18/11/2014,Accommodation,OFFICIAL RECEIVER SERVICES                                                                          ,MIDDLESBROUGH COUNCIL                                       ,BA0000281527,324.92,734213854
BIS,The Insolvency Service,05/11/2014,Insolvency Case Related Costs,OFFICIAL RECEIVER SERVICES                                                                          ,MISS JOY E GILBERT                                          ,BA0000281204,90.00,
BIS,The Insolvency Service,01/11/2014,Travel and Subsistence,OFFICIAL RECEIVER SERVICES                                                                          ,NCP PARKING,BA0000281721,6.00,
BIS,The Insolvency Service,18/11/2014,Office Supplies and Services,BUSINESS SERVICES DIRECTORATE                                                                       ,NEOPOST LIMITED (CONSUMABLES),BA0000281509,95.98,597265489
BIS,The Insolvency Service,14/11/2014,Office Machinery,FINANCE AND COMMERCIAL                                                                              ,NEOPOST LIMITED (CONSUMABLES),BA0000281445,968.36,597265489
BIS,The Insolvency Service,07/11/2014,Postage,BUSINESS SERVICES DIRECTORATE                                                                       ,NEOPOST LTD - FRANKING TOP UPS,BA0000281254,300.00,
BIS,The Insolvency Service,07/11/2014,Postage,BUSINESS SERVICES DIRECTORATE                                                                       ,NEOPOST LTD - FRANKING TOP UPS,BA0000281254,330.00,
BIS,The Insolvency Service,07/11/2014,Postage,BUSINESS SERVICES DIRECTORATE                                                                       ,NEOPOST LTD - FRANKING TOP UPS,BA0000281254,333.00,
BIS,The Insolvency Service,07/11/2014,Postage,BUSINESS SERVICES DIRECTORATE                                                                       ,NEOPOST LTD - FRANKING TOP UPS,BA0000281254,800.00,
BIS,The Insolvency Service,07/11/2014,Postage,INFORMATION TECHNOLOGY                                                                              ,NEOPOST LTD - FRANKING TOP UPS,BA0000281254,"5,000.00",
BIS,The Insolvency Service,07/11/2014,Postage,OFFICIAL RECEIVER SERVICES                                                                          ,NEOPOST LTD - FRANKING TOP UPS,BA0000281254,50.00,
BIS,The Insolvency Service,07/11/2014,Postage,OFFICIAL RECEIVER SERVICES                                                                          ,NEOPOST LTD - FRANKING TOP UPS,BA0000281254,50.00,
BIS,The Insolvency Service,07/11/2014,Postage,OFFICIAL RECEIVER SERVICES                                                                          ,NEOPOST LTD - FRANKING TOP UPS,BA0000281254,50.00,
BIS,The Insolvency Service,07/11/2014,Postage,OFFICIAL RECEIVER SERVICES                                                                          ,NEOPOST LTD - FRANKING TOP UPS,BA0000281254,200.00,
BIS,The Insolvency Service,07/11/2014,Postage,OFFICIAL RECEIVER SERVICES                                                                          ,NEOPOST LTD - FRANKING TOP UPS,BA0000281254,200.00,
BIS,The Insolvency Service,07/11/2014,Postage,OFFICIAL RECEIVER SERVICES                                                                          ,NEOPOST LTD - FRANKING TOP UPS,BA0000281254,567.00,
BIS,The Insolvency Service,07/11/2014,Postage,OFFICIAL RECEIVER SERVICES                                                                          ,NEOPOST LTD - FRANKING TOP UPS,BA0000281254,600.00,
BIS,The Insolvency Service,07/11/2014,Postage,OFFICIAL RECEIVER SERVICES                                                                          ,NEOPOST LTD - FRANKING TOP UPS,BA0000281254,670.00,
BIS,The Insolvency Service,07/11/2014,Postage,OFFICIAL RECEIVER SERVICES                                                                          ,NEOPOST LTD - FRANKING TOP UPS,BA0000281254,700.00,
BIS,The Insolvency Service,07/11/2014,Postage,OFFICIAL RECEIVER SERVICES                                                                          ,NEOPOST LTD - FRANKING TOP UPS,BA0000281254,"1,000.00",
BIS,The Insolvency Service,14/11/2014,Computer and IT Systems,INFORMATION TECHNOLOGY                                                                              ,NINE TELECOM,BA0000281414,156.25,886132113
BIS,The Insolvency Service,14/11/2014,Computer and IT Systems,INFORMATION TECHNOLOGY                                                                              ,NINE TELECOM,BA0000281422,540.00,886132113
BIS,The Insolvency Service,14/11/2014,Computer and IT Systems,INFORMATION TECHNOLOGY                                                                              ,NINE TELECOM,BA0000281423,540.00,886132113
BIS,The Insolvency Service,28/11/2014,Computer and IT Systems,INFORMATION TECHNOLOGY                                                                              ,NINE TELECOM,BA0000281779,-540.00,886132113
BIS,The Insolvency Service,25/11/2014,Telecoms,FINANCE AND COMMERCIAL                                                                              ,NINE TELECOM - NINE SERVICES LTD                            ,BA0000281680,"1,650.00",886132113
BIS,The Insolvency Service,07/11/2014,Training Costs,PEOPLE & CAPABILITY                                                                                 ,NORTH GROVE CONSULTANCY LTD,BA0000281250,"3,172.75",825581516
BIS,The Insolvency Service,18/11/2014,Accommodation,ESTATES,NORTHAMPTON BOROUGH COUNCIL,BA0000281518,301.00,
BIS,The Insolvency Service,26/11/2014,Accommodation,ESTATES,NORTHAMPTONSHIRE COUNTY COUNCIL,BA0000281725,301.00,
BIS,The Insolvency Service,21/11/2014,Computer and IT Systems,FINANCE AND COMMERCIAL                                                                              ,NORTHGATE INFORMATION SOLUTIONS UK LTD.,BA0000281589,"25,888.80",207588545
BIS,The Insolvency Service,21/11/2014,Computer and IT Systems,FINANCE AND COMMERCIAL                                                                              ,NORTHGATE INFORMATION SOLUTIONS UK LTD.,BA0000281590,"2,115.00",207588545
BIS,The Insolvency Service,11/11/2014,Computer and IT Systems,INFORMATION TECHNOLOGY                                                                              ,NORTHGATE INFORMATION SOLUTIONS UK LTD.,BA0000281348,"84,705.73",207588545
BIS,The Insolvency Service,03/11/2014,Accommodation,ESTATES,NPOWER BUSINESS,BA0000281056,310.55,768362492
BIS,The Insolvency Service,03/11/2014,Accommodation,ESTATES,NPOWER BUSINESS,BA0000281057,23.94,768362492
BIS,The Insolvency Service,01/11/2014,Travel and Subsistence,EXTERNAL AFFAIRS                                                                                    ,OYSTER AUTO TOP UP,BA0000281721,20.00,
BIS,The Insolvency Service,01/11/2014,Travel and Subsistence,EXTERNAL AFFAIRS                                                                                    ,OYSTER AUTO TOP UP,BA0000281721,20.00,
BIS,The Insolvency Service,01/11/2014,Travel and Subsistence,OFFICIAL RECEIVER SERVICES                                                                          ,OYSTER AUTO TOP UP,BA0000281721,20.00,
BIS,The Insolvency Service,01/11/2014,Travel and Subsistence,OFFICIAL RECEIVER SERVICES                                                                          ,OYSTER AUTO TOP UP,BA0000281721,20.00,
BIS,The Insolvency Service,01/11/2014,Travel and Subsistence,OFFICIAL RECEIVER SERVICES                                                                          ,OYSTER AUTO TOP UP,BA0000281721,20.00,
BIS,The Insolvency Service,01/11/2014,Travel and Subsistence,OFFICIAL RECEIVER SERVICES                                                                          ,OYSTER AUTO TOP UP,BA0000281721,20.00,
BIS,The Insolvency Service,04/11/2014,Postage,OFFICIAL RECEIVER SERVICES                                                                          ,PARCELFORCE WORLDWIDE,BA0000281141,18.02,243170002
BIS,The Insolvency Service,04/11/2014,Postage,OFFICIAL RECEIVER SERVICES                                                                          ,PARCELFORCE WORLDWIDE,BA0000281141,36.82,243170002
BIS,The Insolvency Service,04/11/2014,Postage,OFFICIAL RECEIVER SERVICES                                                                          ,PARCELFORCE WORLDWIDE,BA0000281141,60.04,243170002
BIS,The Insolvency Service,04/11/2014,Postage,OFFICIAL RECEIVER SERVICES                                                                          ,PARCELFORCE WORLDWIDE,BA0000281141,80.14,243170002
BIS,The Insolvency Service,04/11/2014,Postage,OFFICIAL RECEIVER SERVICES                                                                          ,PARCELFORCE WORLDWIDE,BA0000281141,113.08,243170002
BIS,The Insolvency Service,04/11/2014,Postage,OFFICIAL RECEIVER SERVICES                                                                          ,PARCELFORCE WORLDWIDE,BA0000281141,159.75,243170002
BIS,The Insolvency Service,01/11/2014,Travel and Subsistence,OFFICIAL RECEIVER SERVICES                                                                          ,PAYBYPHONE PARKING,BA0000281721,12.20,
BIS,The Insolvency Service,01/11/2014,Travel and Subsistence,OFFICIAL RECEIVER SERVICES                                                                          ,PAYBYPHONE PARKING,BA0000281721,12.20,
BIS,The Insolvency Service,01/11/2014,Office Supplies and Services,FINANCE AND COMMERCIAL                                                                              ,PHILPOTTS                                                   ,BA0000281721,119.40,
BIS,The Insolvency Service,01/11/2014,Professional Services,OFFICIAL RECEIVER SERVICES                                                                          ,POOLE CAR PARK                                              ,BA0000281721,4.40,
BIS,The Insolvency Service,01/11/2014,Telecoms,FINANCE AND COMMERCIAL                                                                              ,POST AND PACKING LTD                                        ,BA0000281721,53.04,
BIS,The Insolvency Service,01/11/2014,Telecoms,FINANCE AND COMMERCIAL                                                                              ,POST AND PACKING LTD                                        ,BA0000281721,38.64,
BIS,The Insolvency Service,01/11/2014,Employee Related Costs,PEOPLE & CAPABILITY                                                                                 ,POSTURITE (UK) LTD.,BA0000281721,610.98,
BIS,The Insolvency Service,07/11/2014,Investigation and Enforcement Costs,CUSTOMER AND COMMUNICATIONS                                                                         ,PRECISE MEDIA MONITORING LTD AKA ENERGY DATA SERVICES LTD,BA0000281258,773.51,849092202
BIS,The Insolvency Service,07/11/2014,Investigation and Enforcement Costs,CUSTOMER AND COMMUNICATIONS                                                                         ,PRECISE MEDIA MONITORING LTD AKA ENERGY DATA SERVICES LTD,BA0000281272,705.92,849092202
BIS,The Insolvency Service,20/11/2014,Investigation and Enforcement Costs,CUSTOMER AND COMMUNICATIONS                                                                         ,PRECISE MEDIA MONITORING LTD AKA ENERGY DATA SERVICES LTD,BA0000281562,"1,292.52",849092202
BIS,The Insolvency Service,07/11/2014,Computer and IT Systems,INFORMATION TECHNOLOGY                                                                              ,PROBRAND LIMITED,BA0000281246,"1,440.00",850401565
BIS,The Insolvency Service,01/11/2014,Insolvency Case Related Costs,OFFICIAL RECEIVER SERVICES                                                                          ,REGISTRA S.L.,BA0000281721,28.92,
BIS,The Insolvency Service,26/11/2014,Insolvency Case Related Costs,FINANCE AND COMMERCIAL,REGISTRAR OF COMPANIES,BA0000281550,300.00,
BIS,The Insolvency Service,01/11/2014,Professional Services,FINANCE AND COMMERCIAL                                                                              ,REGUS MANAGEMENT UK,BA0000281721,320.76,823830634
BIS,The Insolvency Service,07/11/2014,Employee Related Costs,PEOPLE & CAPABILITY                                                                                 ,RIGHT MANAGEMENT WORKPLACE WELLNESS                         ,BA0000281256,661.21,
BIS,The Insolvency Service,01/11/2014,Travel and Subsistence,PEOPLE & CAPABILITY                                                                                 ,RINGOPARKBYPHONE                                            ,BA0000281721,4.00,
BIS,The Insolvency Service,20/11/2014,Postage,OFFICIAL RECEIVER SERVICES                                                                          ,ROYAL MAIL,BA0000281553,240.00,
BIS,The Insolvency Service,05/11/2014,Postage,FINANCE AND COMMERCIAL                                                                              ,ROYAL MAIL GROUP LTD,BA0000281205,61.07,243170002
BIS,The Insolvency Service,01/11/2014,Postage,OFFICIAL RECEIVER SERVICES                                                                          ,ROYAL MAIL GROUP LTD,BA0000279437,66.67,243170002
BIS,The Insolvency Service,01/11/2014,Postage,OFFICIAL RECEIVER SERVICES                                                                          ,ROYAL MAIL GROUP LTD,BA0000281721,"2,340.00",
BIS,The Insolvency Service,05/11/2014,Postage,OFFICIAL RECEIVER SERVICES                                                                          ,ROYAL MAIL GROUP LTD,BA0000281197,113.20,243170002
BIS,The Insolvency Service,07/11/2014,Postage,OFFICIAL RECEIVER SERVICES                                                                          ,ROYAL MAIL GROUP LTD,BA0000281261,20.96,243170002
BIS,The Insolvency Service,14/11/2014,Postage,OFFICIAL RECEIVER SERVICES                                                                          ,ROYAL MAIL GROUP LTD,BA0000281405,135.55,243170002
BIS,The Insolvency Service,14/11/2014,Postage,OFFICIAL RECEIVER SERVICES                                                                          ,ROYAL MAIL GROUP LTD,BA0000281405,"1,214.42",243170002
BIS,The Insolvency Service,14/11/2014,Postage,OFFICIAL RECEIVER SERVICES                                                                          ,ROYAL MAIL GROUP LTD,BA0000281419,90.00,243170002
BIS,The Insolvency Service,14/11/2014,Postage,OFFICIAL RECEIVER SERVICES                                                                          ,ROYAL MAIL GROUP LTD,BA0000281442,24.09,243170002
BIS,The Insolvency Service,17/11/2014,Postage,OFFICIAL RECEIVER SERVICES                                                                          ,ROYAL MAIL GROUP LTD,BA0000281483,21.03,243170002
BIS,The Insolvency Service,25/11/2014,Postage,OFFICIAL RECEIVER SERVICES                                                                          ,ROYAL MAIL GROUP LTD,BA0000281693,11.43,243170002
BIS,The Insolvency Service,26/11/2014,Postage,OFFICIAL RECEIVER SERVICES                                                                          ,ROYAL MAIL GROUP LTD,BA0000281726,95.38,243170002
BIS,The Insolvency Service,01/11/2014,Office Machinery,BUSINESS SERVICES DIRECTORATE                                                                       ,RUNITDIRECT ONLINE                                          ,BA0000281721,20.38,
BIS,The Insolvency Service,01/11/2014,Office Supplies and Services,INVESTIGATIONS & ENFORCEMENT                                                                        ,RYMAN LTD,BA0000281721,5.99,672523729
BIS,The Insolvency Service,28/11/2014,Accommodation,FINANCE AND COMMERCIAL                                                                              ,SECURITAS (FORMALLY RELIANCE SECURITY SERVICES LTD),BA0000281792,277.85,603175864
BIS,The Insolvency Service,20/11/2014,Employee Related Costs,PEOPLE & CAPABILITY                                                                                 ,SENATOR INTERNATIONAL LTD,BA0000281554,438.91,291146560
BIS,The Insolvency Service,14/11/2014,Agency Workers,OFFICIAL RECEIVER SERVICES                                                                          ,SHAW TRUST LTD,BA0000281406,"1,232.18",399017616
BIS,The Insolvency Service,14/11/2014,Investigation and Enforcement Costs,INVESTIGATIONS & ENFORCEMENT                                                                        ,SHEPHERD & WEDDERBURN WS (ENGLISH CASES)                    ,BA0000281404,"3,793.95",890559386
BIS,The Insolvency Service,14/11/2014,Investigation and Enforcement Costs,INVESTIGATIONS & ENFORCEMENT                                                                        ,SHEPHERD & WEDDERBURN WS (ENGLISH CASES)                    ,BA0000281404,"2,890.65",890559386
BIS,The Insolvency Service,20/11/2014,Investigation and Enforcement Costs,INVESTIGATIONS & ENFORCEMENT                                                                        ,SHEPHERD & WEDDERBURN WS (SCOTTISH CASES)                   ,BA0000281561,"31,157.40",890559386
BIS,The Insolvency Service,20/11/2014,Investigation and Enforcement Costs,INVESTIGATIONS & ENFORCEMENT                                                                        ,SHEPHERD & WEDDERBURN WS (SCOTTISH CASES)                   ,BA0000281561,"33,994.01",890559386
BIS,The Insolvency Service,20/11/2014,Investigation and Enforcement Costs,INVESTIGATIONS & ENFORCEMENT                                                                        ,SHEPHERD & WEDDERBURN WS (SCOTTISH CASES)                   ,BA0000281561,"1,424.25",890559386
BIS,The Insolvency Service,12/11/2014,Accommodation,ESTATES,SHORROCK TRICHEM LTD,BA0000281361,"1,113.00",732829814
BIS,The Insolvency Service,07/11/2014,Accommodation,FINANCE AND COMMERCIAL                                                                              ,SIMS GROUP UK LIMITED                                       ,BA0000281274,"16,458.60",
BIS,The Insolvency Service,07/11/2014,Accommodation,FINANCE AND COMMERCIAL                                                                              ,SIMS GROUP UK LIMITED                                       ,BA0000281277,"-2,208.10",
BIS,The Insolvency Service,07/11/2014,Accommodation,FINANCE AND COMMERCIAL                                                                              ,SIMS GROUP UK LIMITED                                       ,BA0000281269,-331.80,
BIS,The Insolvency Service,04/11/2014,Investigation and Enforcement Costs,INVESTIGATIONS & ENFORCEMENT                                                                        ,SIRS (EUROPE) LTD,BA0000281156,"2,075.00",990834974
BIS,The Insolvency Service,04/11/2014,Insolvency Case Related Costs,OFFICIAL RECEIVER SERVICES                                                                          ,SIRS (EUROPE) LTD,BA0000281156,"8,490.00",990834974
BIS,The Insolvency Service,01/11/2014,Computer and IT Systems,FINANCE AND COMMERCIAL                                                                              ,SKY                                                         ,BA0000281721,20.50,
BIS,The Insolvency Service,04/11/2014,Computer and IT Systems,INFORMATION TECHNOLOGY                                                                              ,SPRING TECHNOLOGY STAFFING,BA0000281153,"2,486.28",
BIS,The Insolvency Service,04/11/2014,Computer and IT Systems,INFORMATION TECHNOLOGY                                                                              ,SPRING TECHNOLOGY STAFFING,BA0000281154,"3,984.29",
BIS,The Insolvency Service,12/11/2014,Computer and IT Systems,INFORMATION TECHNOLOGY                                                                              ,SPRING TECHNOLOGY STAFFING,BA0000281363,"3,984.29",
BIS,The Insolvency Service,12/11/2014,Computer and IT Systems,INFORMATION TECHNOLOGY                                                                              ,SPRING TECHNOLOGY STAFFING,BA0000281364,"2,486.28",
BIS,The Insolvency Service,17/11/2014,Computer and IT Systems,INFORMATION TECHNOLOGY                                                                              ,SPRING TECHNOLOGY STAFFING,BA0000281467,"2,784.64",
BIS,The Insolvency Service,18/11/2014,Computer and IT Systems,INFORMATION TECHNOLOGY                                                                              ,SPRING TECHNOLOGY STAFFING,BA0000281495,"3,984.29",
BIS,The Insolvency Service,25/11/2014,Computer and IT Systems,INFORMATION TECHNOLOGY                                                                              ,SPRING TECHNOLOGY STAFFING,BA0000281631,"3,406.20",
BIS,The Insolvency Service,25/11/2014,Computer and IT Systems,INFORMATION TECHNOLOGY                                                                              ,SPRING TECHNOLOGY STAFFING,BA0000281699,"3,984.29",
BIS,The Insolvency Service,07/11/2014,Training Costs,PEOPLE & CAPABILITY                                                                                 ,ST.JOHN AMBULANCE,BA0000281203,-114.00,564553916
BIS,The Insolvency Service,07/11/2014,Training Costs,PEOPLE & CAPABILITY                                                                                 ,ST.JOHN AMBULANCE,BA0000281267,475.00,564553916
BIS,The Insolvency Service,03/11/2014,Travel and Subsistence,BUSINESS SERVICES DIRECTORATE                                                                       ,Staff Payment,BA0000281058,94.30,
BIS,The Insolvency Service,03/11/2014,Travel and Subsistence,BUSINESS SERVICES DIRECTORATE                                                                       ,Staff Payment,BA0000281058,8.90,
BIS,The Insolvency Service,03/11/2014,Travel and Subsistence,BUSINESS SERVICES DIRECTORATE                                                                       ,Staff Payment,BA0000281058,109.80,
BIS,The Insolvency Service,03/11/2014,Travel and Subsistence,BUSINESS SERVICES DIRECTORATE                                                                       ,Staff Payment,BA0000281058,5.00,
BIS,The Insolvency Service,03/11/2014,Travel and Subsistence,BUSINESS SERVICES DIRECTORATE                                                                       ,Staff Payment,BA0000281058,5.00,
BIS,The Insolvency Service,03/11/2014,Travel and Subsistence,BUSINESS SERVICES DIRECTORATE                                                                       ,Staff Payment,BA0000281058,35.58,
BIS,The Insolvency Service,04/11/2014,Travel and Subsistence,BUSINESS SERVICES DIRECTORATE                                                                       ,Staff Payment,BA0000281128,3.00,
BIS,The Insolvency Service,04/11/2014,Travel and Subsistence,BUSINESS SERVICES DIRECTORATE                                                                       ,Staff Payment,BA0000281128,2.20,
BIS,The Insolvency Service,04/11/2014,Travel and Subsistence,BUSINESS SERVICES DIRECTORATE                                                                       ,Staff Payment,BA0000281128,349.65,
BIS,The Insolvency Service,04/11/2014,Travel and Subsistence,BUSINESS SERVICES DIRECTORATE                                                                       ,Staff Payment,BA0000281128,12.00,
BIS,The Insolvency Service,04/11/2014,Travel and Subsistence,BUSINESS SERVICES DIRECTORATE                                                                       ,Staff Payment,BA0000281128,35.00,
BIS,The Insolvency Service,04/11/2014,Travel and Subsistence,BUSINESS SERVICES DIRECTORATE                                                                       ,Staff Payment,BA0000281128,23.79,
BIS,The Insolvency Service,05/11/2014,Office Supplies and Services,BUSINESS SERVICES DIRECTORATE                                                                       ,Staff Payment,BA0000281206,4.00,
BIS,The Insolvency Service,07/11/2014,Travel and Subsistence,BUSINESS SERVICES DIRECTORATE                                                                       ,Staff Payment,BA0000281282,8.90,
BIS,The Insolvency Service,07/11/2014,Travel and Subsistence,BUSINESS SERVICES DIRECTORATE                                                                       ,Staff Payment,BA0000281282,12.00,
BIS,The Insolvency Service,07/11/2014,Travel and Subsistence,BUSINESS SERVICES DIRECTORATE                                                                       ,Staff Payment,BA0000281282,4.00,
BIS,The Insolvency Service,07/11/2014,Travel and Subsistence,BUSINESS SERVICES DIRECTORATE                                                                       ,Staff Payment,BA0000281282,76.50,
BIS,The Insolvency Service,10/11/2014,Travel and Subsistence,BUSINESS SERVICES DIRECTORATE                                                                       ,Staff Payment,BA0000281311,5.00,
BIS,The Insolvency Service,10/11/2014,Travel and Subsistence,BUSINESS SERVICES DIRECTORATE                                                                       ,Staff Payment,BA0000281311,13.48,
BIS,The Insolvency Service,10/11/2014,Travel and Subsistence,BUSINESS SERVICES DIRECTORATE                                                                       ,Staff Payment,BA0000281311,3.50,
BIS,The Insolvency Service,11/11/2014,Travel and Subsistence,BUSINESS SERVICES DIRECTORATE                                                                       ,Staff Payment,BA0000281343,13.80,
BIS,The Insolvency Service,11/11/2014,Travel and Subsistence,BUSINESS SERVICES DIRECTORATE                                                                       ,Staff Payment,BA0000281343,7.60,
BIS,The Insolvency Service,11/11/2014,Travel and Subsistence,BUSINESS SERVICES DIRECTORATE                                                                       ,Staff Payment,BA0000281343,48.00,
BIS,The Insolvency Service,11/11/2014,Travel and Subsistence,BUSINESS SERVICES DIRECTORATE                                                                       ,Staff Payment,BA0000281343,7.00,
BIS,The Insolvency Service,11/11/2014,Travel and Subsistence,BUSINESS SERVICES DIRECTORATE                                                                       ,Staff Payment,BA0000281343,190.80,
BIS,The Insolvency Service,11/11/2014,Travel and Subsistence,BUSINESS SERVICES DIRECTORATE                                                                       ,Staff Payment,BA0000281343,53.00,
BIS,The Insolvency Service,11/11/2014,Travel and Subsistence,BUSINESS SERVICES DIRECTORATE                                                                       ,Staff Payment,BA0000281343,6.40,
BIS,The Insolvency Service,11/11/2014,Travel and Subsistence,BUSINESS SERVICES DIRECTORATE                                                                       ,Staff Payment,BA0000281343,49.35,
BIS,The Insolvency Service,11/11/2014,Travel and Subsistence,BUSINESS SERVICES DIRECTORATE                                                                       ,Staff Payment,BA0000281343,87.84,
BIS,The Insolvency Service,11/11/2014,Travel and Subsistence,BUSINESS SERVICES DIRECTORATE                                                                       ,Staff Payment,BA0000281343,16.69,
BIS,The Insolvency Service,11/11/2014,Office Supplies and Services,BUSINESS SERVICES DIRECTORATE                                                                       ,Staff Payment,BA0000281343,4.50,
BIS,The Insolvency Service,14/11/2014,Travel and Subsistence,BUSINESS SERVICES DIRECTORATE                                                                       ,Staff Payment,BA0000281410,4.00,
BIS,The Insolvency Service,14/11/2014,Travel and Subsistence,BUSINESS SERVICES DIRECTORATE                                                                       ,Staff Payment,BA0000281410,68.40,
BIS,The Insolvency Service,14/11/2014,Accounting and Banking,BUSINESS SERVICES DIRECTORATE                                                                       ,Staff Payment,BA0000281410,11.38,
BIS,The Insolvency Service,14/11/2014,Accounting and Banking,BUSINESS SERVICES DIRECTORATE                                                                       ,Staff Payment,BA0000281410,11.38,
BIS,The Insolvency Service,17/11/2014,Travel and Subsistence,BUSINESS SERVICES DIRECTORATE                                                                       ,Staff Payment,BA0000281466,89.50,
BIS,The Insolvency Service,17/11/2014,Travel and Subsistence,BUSINESS SERVICES DIRECTORATE                                                                       ,Staff Payment,BA0000281466,15.60,
BIS,The Insolvency Service,17/11/2014,Travel and Subsistence,BUSINESS SERVICES DIRECTORATE                                                                       ,Staff Payment,BA0000281466,118.05,
BIS,The Insolvency Service,17/11/2014,Travel and Subsistence,BUSINESS SERVICES DIRECTORATE                                                                       ,Staff Payment,BA0000281466,78.30,
BIS,The Insolvency Service,17/11/2014,Travel and Subsistence,BUSINESS SERVICES DIRECTORATE                                                                       ,Staff Payment,BA0000281466,4.79,
BIS,The Insolvency Service,20/11/2014,Travel and Subsistence,BUSINESS SERVICES DIRECTORATE                                                                       ,Staff Payment,BA0000281566,43.20,
BIS,The Insolvency Service,20/11/2014,Travel and Subsistence,BUSINESS SERVICES DIRECTORATE                                                                       ,Staff Payment,BA0000281566,49.00,
BIS,The Insolvency Service,20/11/2014,Travel and Subsistence,BUSINESS SERVICES DIRECTORATE                                                                       ,Staff Payment,BA0000281566,48.60,
BIS,The Insolvency Service,20/11/2014,Travel and Subsistence,BUSINESS SERVICES DIRECTORATE                                                                       ,Staff Payment,BA0000281566,135.00,
BIS,The Insolvency Service,20/11/2014,Travel and Subsistence,BUSINESS SERVICES DIRECTORATE                                                                       ,Staff Payment,BA0000281566,37.64,
BIS,The Insolvency Service,20/11/2014,Travel and Subsistence,BUSINESS SERVICES DIRECTORATE                                                                       ,Staff Payment,BA0000281566,99.93,
BIS,The Insolvency Service,21/11/2014,Travel and Subsistence,BUSINESS SERVICES DIRECTORATE                                                                       ,Staff Payment,BA0000281587,9.40,
BIS,The Insolvency Service,21/11/2014,Travel and Subsistence,BUSINESS SERVICES DIRECTORATE                                                                       ,Staff Payment,BA0000281587,19.40,
BIS,The Insolvency Service,21/11/2014,Travel and Subsistence,BUSINESS SERVICES DIRECTORATE                                                                       ,Staff Payment,BA0000281587,20.00,
BIS,The Insolvency Service,21/11/2014,Travel and Subsistence,BUSINESS SERVICES DIRECTORATE                                                                       ,Staff Payment,BA0000281587,279.00,
BIS,The Insolvency Service,21/11/2014,Travel and Subsistence,BUSINESS SERVICES DIRECTORATE                                                                       ,Staff Payment,BA0000281587,8.00,
BIS,The Insolvency Service,21/11/2014,Travel and Subsistence,BUSINESS SERVICES DIRECTORATE                                                                       ,Staff Payment,BA0000281587,18.00,
BIS,The Insolvency Service,21/11/2014,Travel and Subsistence,BUSINESS SERVICES DIRECTORATE                                                                       ,Staff Payment,BA0000281587,8.00,
BIS,The Insolvency Service,21/11/2014,Travel and Subsistence,BUSINESS SERVICES DIRECTORATE                                                                       ,Staff Payment,BA0000281587,18.00,
BIS,The Insolvency Service,21/11/2014,Travel and Subsistence,BUSINESS SERVICES DIRECTORATE                                                                       ,Staff Payment,BA0000281587,85.00,
BIS,The Insolvency Service,21/11/2014,Travel and Subsistence,BUSINESS SERVICES DIRECTORATE                                                                       ,Staff Payment,BA0000281587,5.00,
BIS,The Insolvency Service,21/11/2014,Travel and Subsistence,BUSINESS SERVICES DIRECTORATE                                                                       ,Staff Payment,BA0000281587,10.00,
BIS,The Insolvency Service,21/11/2014,Travel and Subsistence,BUSINESS SERVICES DIRECTORATE                                                                       ,Staff Payment,BA0000281587,5.40,
BIS,The Insolvency Service,21/11/2014,Travel and Subsistence,BUSINESS SERVICES DIRECTORATE                                                                       ,Staff Payment,BA0000281587,66.00,
BIS,The Insolvency Service,21/11/2014,Travel and Subsistence,BUSINESS SERVICES DIRECTORATE                                                                       ,Staff Payment,BA0000281587,16.00,
BIS,The Insolvency Service,21/11/2014,Travel and Subsistence,BUSINESS SERVICES DIRECTORATE                                                                       ,Staff Payment,BA0000281587,10.00,
BIS,The Insolvency Service,21/11/2014,Travel and Subsistence,BUSINESS SERVICES DIRECTORATE                                                                       ,Staff Payment,BA0000281587,19.80,
BIS,The Insolvency Service,21/11/2014,Travel and Subsistence,BUSINESS SERVICES DIRECTORATE                                                                       ,Staff Payment,BA0000281587,8.00,
BIS,The Insolvency Service,21/11/2014,Travel and Subsistence,BUSINESS SERVICES DIRECTORATE                                                                       ,Staff Payment,BA0000281587,5.00,
BIS,The Insolvency Service,21/11/2014,Travel and Subsistence,BUSINESS SERVICES DIRECTORATE                                                                       ,Staff Payment,BA0000281587,14.30,
BIS,The Insolvency Service,21/11/2014,Travel and Subsistence,BUSINESS SERVICES DIRECTORATE                                                                       ,Staff Payment,BA0000281587,14.55,
BIS,The Insolvency Service,21/11/2014,Travel and Subsistence,BUSINESS SERVICES DIRECTORATE                                                                       ,Staff Payment,BA0000281587,22.55,
BIS,The Insolvency Service,21/11/2014,Travel and Subsistence,BUSINESS SERVICES DIRECTORATE                                                                       ,Staff Payment,BA0000281587,30.94,
BIS,The Insolvency Service,21/11/2014,Office Supplies and Services,BUSINESS SERVICES DIRECTORATE                                                                       ,Staff Payment,BA0000281587,3.29,
BIS,The Insolvency Service,25/11/2014,Travel and Subsistence,BUSINESS SERVICES DIRECTORATE                                                                       ,Staff Payment,BA0000281678,4.30,
BIS,The Insolvency Service,25/11/2014,Travel and Subsistence,BUSINESS SERVICES DIRECTORATE                                                                       ,Staff Payment,BA0000281620,8.90,
BIS,The Insolvency Service,25/11/2014,Travel and Subsistence,BUSINESS SERVICES DIRECTORATE                                                                       ,Staff Payment,BA0000281678,4.00,
BIS,The Insolvency Service,25/11/2014,Travel and Subsistence,BUSINESS SERVICES DIRECTORATE                                                                       ,Staff Payment,BA0000281678,68.40,
BIS,The Insolvency Service,25/11/2014,Travel and Subsistence,BUSINESS SERVICES DIRECTORATE                                                                       ,Staff Payment,BA0000281678,51.30,
BIS,The Insolvency Service,25/11/2014,Travel and Subsistence,BUSINESS SERVICES DIRECTORATE                                                                       ,Staff Payment,BA0000281620,5.00,
BIS,The Insolvency Service,25/11/2014,Travel and Subsistence,BUSINESS SERVICES DIRECTORATE                                                                       ,Staff Payment,BA0000281678,18.00,
BIS,The Insolvency Service,25/11/2014,Travel and Subsistence,BUSINESS SERVICES DIRECTORATE                                                                       ,Staff Payment,BA0000281620,3.75,
BIS,The Insolvency Service,25/11/2014,Travel and Subsistence,BUSINESS SERVICES DIRECTORATE                                                                       ,Staff Payment,BA0000281620,5.42,
BIS,The Insolvency Service,25/11/2014,Travel and Subsistence,BUSINESS SERVICES DIRECTORATE                                                                       ,Staff Payment,BA0000281678,8.65,
BIS,The Insolvency Service,25/11/2014,Travel and Subsistence,BUSINESS SERVICES DIRECTORATE                                                                       ,Staff Payment,BA0000281678,73.40,
BIS,The Insolvency Service,28/11/2014,Travel and Subsistence,BUSINESS SERVICES DIRECTORATE                                                                       ,Staff Payment,BA0000281787,3.14,
BIS,The Insolvency Service,28/11/2014,Travel and Subsistence,BUSINESS SERVICES DIRECTORATE                                                                       ,Staff Payment,BA0000281787,6.80,
BIS,The Insolvency Service,28/11/2014,Travel and Subsistence,BUSINESS SERVICES DIRECTORATE                                                                       ,Staff Payment,BA0000281787,3.00,
BIS,The Insolvency Service,28/11/2014,Travel and Subsistence,BUSINESS SERVICES DIRECTORATE                                                                       ,Staff Payment,BA0000281787,4.60,
BIS,The Insolvency Service,28/11/2014,Travel and Subsistence,BUSINESS SERVICES DIRECTORATE                                                                       ,Staff Payment,BA0000281787,49.50,
BIS,The Insolvency Service,28/11/2014,Travel and Subsistence,BUSINESS SERVICES DIRECTORATE                                                                       ,Staff Payment,BA0000281787,7.00,
BIS,The Insolvency Service,28/11/2014,Travel and Subsistence,BUSINESS SERVICES DIRECTORATE                                                                       ,Staff Payment,BA0000281787,93.25,
BIS,The Insolvency Service,28/11/2014,Travel and Subsistence,BUSINESS SERVICES DIRECTORATE                                                                       ,Staff Payment,BA0000281787,60.00,
BIS,The Insolvency Service,28/11/2014,Travel and Subsistence,BUSINESS SERVICES DIRECTORATE                                                                       ,Staff Payment,BA0000281787,8.00,
BIS,The Insolvency Service,28/11/2014,Travel and Subsistence,BUSINESS SERVICES DIRECTORATE                                                                       ,Staff Payment,BA0000281787,153.00,
BIS,The Insolvency Service,28/11/2014,Travel and Subsistence,BUSINESS SERVICES DIRECTORATE                                                                       ,Staff Payment,BA0000281787,5.00,
BIS,The Insolvency Service,28/11/2014,Travel and Subsistence,BUSINESS SERVICES DIRECTORATE                                                                       ,Staff Payment,BA0000281787,29.65,
BIS,The Insolvency Service,28/11/2014,Travel and Subsistence,BUSINESS SERVICES DIRECTORATE                                                                       ,Staff Payment,BA0000281787,12.20,
BIS,The Insolvency Service,28/11/2014,Travel and Subsistence,BUSINESS SERVICES DIRECTORATE                                                                       ,Staff Payment,BA0000281787,8.79,
BIS,The Insolvency Service,10/11/2014,Travel and Subsistence,CUSTOMER AND COMMUNICATIONS                                                                         ,Staff Payment,BA0000281311,2.20,
BIS,The Insolvency Service,20/11/2014,Travel and Subsistence,CUSTOMER AND COMMUNICATIONS                                                                         ,Staff Payment,BA0000281566,34.90,
BIS,The Insolvency Service,20/11/2014,Travel and Subsistence,CUSTOMER AND COMMUNICATIONS                                                                         ,Staff Payment,BA0000281566,11.00,
BIS,The Insolvency Service,20/11/2014,Travel and Subsistence,CUSTOMER AND COMMUNICATIONS                                                                         ,Staff Payment,BA0000281566,49.26,
BIS,The Insolvency Service,05/11/2014,Travel and Subsistence,ESTATES,Staff Payment,BA0000281206,5.10,
BIS,The Insolvency Service,05/11/2014,Travel and Subsistence,ESTATES,Staff Payment,BA0000281206,18.00,
BIS,The Insolvency Service,05/11/2014,Travel and Subsistence,ESTATES,Staff Payment,BA0000281206,6.80,
BIS,The Insolvency Service,05/11/2014,Travel and Subsistence,ESTATES,Staff Payment,BA0000281206,29.70,
BIS,The Insolvency Service,05/11/2014,Travel and Subsistence,ESTATES,Staff Payment,BA0000281206,3.00,
BIS,The Insolvency Service,25/11/2014,Travel and Subsistence,ESTATES,Staff Payment,BA0000281620,117.00,
BIS,The Insolvency Service,25/11/2014,Travel and Subsistence,ESTATES,Staff Payment,BA0000281620,7.00,
BIS,The Insolvency Service,25/11/2014,Travel and Subsistence,ESTATES,Staff Payment,BA0000281620,12.79,
BIS,The Insolvency Service,25/11/2014,Travel and Subsistence,ESTATES,Staff Payment,BA0000281620,7.64,
BIS,The Insolvency Service,25/11/2014,Travel and Subsistence,ESTATES,Staff Payment,BA0000281620,31.30,
BIS,The Insolvency Service,25/11/2014,Travel and Subsistence,ESTATES,Staff Payment,BA0000281620,12.90,
BIS,The Insolvency Service,25/11/2014,Travel and Subsistence,ESTATES,Staff Payment,BA0000281620,47.27,
BIS,The Insolvency Service,25/11/2014,Employee Related Costs,ESTATES,Staff Payment,BA0000281620,141.00,
BIS,The Insolvency Service,05/11/2014,Travel and Subsistence,EXTERNAL AFFAIRS                                                                                    ,Staff Payment,BA0000281206,10.80,
BIS,The Insolvency Service,05/11/2014,Travel and Subsistence,EXTERNAL AFFAIRS                                                                                    ,Staff Payment,BA0000281206,6.00,
BIS,The Insolvency Service,10/11/2014,Office Supplies and Services,EXTERNAL AFFAIRS                                                                                    ,Staff Payment,BA0000281311,9.98,
BIS,The Insolvency Service,14/11/2014,Travel and Subsistence,EXTERNAL AFFAIRS                                                                                    ,Staff Payment,BA0000281410,42.00,
BIS,The Insolvency Service,25/11/2014,Travel and Subsistence,EXTERNAL AFFAIRS                                                                                    ,Staff Payment,BA0000281678,14.00,
BIS,The Insolvency Service,26/11/2014,Travel and Subsistence,FINANCE AND COMMERCIAL,Staff Payment,BA0000281723,93.80,
BIS,The Insolvency Service,03/11/2014,Travel and Subsistence,FINANCE AND COMMERCIAL                                                                              ,Staff Payment,BA0000281058,5.00,
BIS,The Insolvency Service,03/11/2014,Travel and Subsistence,FINANCE AND COMMERCIAL                                                                              ,Staff Payment,BA0000281058,28.37,
BIS,The Insolvency Service,03/11/2014,Travel and Subsistence,FINANCE AND COMMERCIAL                                                                              ,Staff Payment,BA0000281058,8.00,
BIS,The Insolvency Service,04/11/2014,Travel and Subsistence,FINANCE AND COMMERCIAL                                                                              ,Staff Payment,BA0000281128,9.00,
BIS,The Insolvency Service,04/11/2014,Travel and Subsistence,FINANCE AND COMMERCIAL                                                                              ,Staff Payment,BA0000281128,71.00,
BIS,The Insolvency Service,04/11/2014,Travel and Subsistence,FINANCE AND COMMERCIAL                                                                              ,Staff Payment,BA0000281128,35.00,
BIS,The Insolvency Service,04/11/2014,Travel and Subsistence,FINANCE AND COMMERCIAL                                                                              ,Staff Payment,BA0000281128,136.80,
BIS,The Insolvency Service,05/11/2014,Travel and Subsistence,FINANCE AND COMMERCIAL                                                                              ,Staff Payment,BA0000281206,13.50,
BIS,The Insolvency Service,05/11/2014,Travel and Subsistence,FINANCE AND COMMERCIAL                                                                              ,Staff Payment,BA0000281206,144.00,
BIS,The Insolvency Service,07/11/2014,Travel and Subsistence,FINANCE AND COMMERCIAL                                                                              ,Staff Payment,BA0000281282,8.00,
BIS,The Insolvency Service,07/11/2014,Travel and Subsistence,FINANCE AND COMMERCIAL                                                                              ,Staff Payment,BA0000281282,9.90,
BIS,The Insolvency Service,07/11/2014,Travel and Subsistence,FINANCE AND COMMERCIAL                                                                              ,Staff Payment,BA0000281282,2.70,
BIS,The Insolvency Service,07/11/2014,Travel and Subsistence,FINANCE AND COMMERCIAL                                                                              ,Staff Payment,BA0000281282,124.20,
BIS,The Insolvency Service,07/11/2014,Travel and Subsistence,FINANCE AND COMMERCIAL                                                                              ,Staff Payment,BA0000281282,8.00,
BIS,The Insolvency Service,07/11/2014,Travel and Subsistence,FINANCE AND COMMERCIAL                                                                              ,Staff Payment,BA0000281282,25.08,
BIS,The Insolvency Service,07/11/2014,Travel and Subsistence,FINANCE AND COMMERCIAL                                                                              ,Staff Payment,BA0000281282,5.00,
BIS,The Insolvency Service,07/11/2014,Travel and Subsistence,FINANCE AND COMMERCIAL                                                                              ,Staff Payment,BA0000281282,10.00,
BIS,The Insolvency Service,07/11/2014,Travel and Subsistence,FINANCE AND COMMERCIAL                                                                              ,Staff Payment,BA0000281282,9.54,
BIS,The Insolvency Service,10/11/2014,Travel and Subsistence,FINANCE AND COMMERCIAL                                                                              ,Staff Payment,BA0000281311,8.00,
BIS,The Insolvency Service,11/11/2014,Travel and Subsistence,FINANCE AND COMMERCIAL                                                                              ,Staff Payment,BA0000281343,10.40,
BIS,The Insolvency Service,11/11/2014,Travel and Subsistence,FINANCE AND COMMERCIAL                                                                              ,Staff Payment,BA0000281343,11.20,
BIS,The Insolvency Service,11/11/2014,Travel and Subsistence,FINANCE AND COMMERCIAL                                                                              ,Staff Payment,BA0000281343,18.87,
BIS,The Insolvency Service,11/11/2014,Travel and Subsistence,FINANCE AND COMMERCIAL                                                                              ,Staff Payment,BA0000281343,20.00,
BIS,The Insolvency Service,11/11/2014,Travel and Subsistence,FINANCE AND COMMERCIAL                                                                              ,Staff Payment,BA0000281343,3.59,
BIS,The Insolvency Service,11/11/2014,Travel and Subsistence,FINANCE AND COMMERCIAL                                                                              ,Staff Payment,BA0000281343,4.58,
BIS,The Insolvency Service,14/11/2014,Travel and Subsistence,FINANCE AND COMMERCIAL                                                                              ,Staff Payment,BA0000281433,18.60,
BIS,The Insolvency Service,14/11/2014,Travel and Subsistence,FINANCE AND COMMERCIAL                                                                              ,Staff Payment,BA0000281410,707.20,
BIS,The Insolvency Service,14/11/2014,Travel and Subsistence,FINANCE AND COMMERCIAL                                                                              ,Staff Payment,BA0000281433,4.00,
BIS,The Insolvency Service,14/11/2014,Travel and Subsistence,FINANCE AND COMMERCIAL                                                                              ,Staff Payment,BA0000281433,139.50,
BIS,The Insolvency Service,14/11/2014,Travel and Subsistence,FINANCE AND COMMERCIAL                                                                              ,Staff Payment,BA0000281410,25.00,
BIS,The Insolvency Service,14/11/2014,Travel and Subsistence,FINANCE AND COMMERCIAL                                                                              ,Staff Payment,BA0000281410,5.80,
BIS,The Insolvency Service,14/11/2014,Travel and Subsistence,FINANCE AND COMMERCIAL                                                                              ,Staff Payment,BA0000281410,5.80,
BIS,The Insolvency Service,14/11/2014,Travel and Subsistence,FINANCE AND COMMERCIAL                                                                              ,Staff Payment,BA0000281410,9.00,
BIS,The Insolvency Service,14/11/2014,Travel and Subsistence,FINANCE AND COMMERCIAL                                                                              ,Staff Payment,BA0000281410,3.00,
BIS,The Insolvency Service,14/11/2014,Travel and Subsistence,FINANCE AND COMMERCIAL                                                                              ,Staff Payment,BA0000281410,14.95,
BIS,The Insolvency Service,14/11/2014,Travel and Subsistence,FINANCE AND COMMERCIAL                                                                              ,Staff Payment,BA0000281410,14.05,
BIS,The Insolvency Service,14/11/2014,Travel and Subsistence,FINANCE AND COMMERCIAL                                                                              ,Staff Payment,BA0000281410,29.13,
BIS,The Insolvency Service,14/11/2014,Travel and Subsistence,FINANCE AND COMMERCIAL                                                                              ,Staff Payment,BA0000281410,10.60,
BIS,The Insolvency Service,14/11/2014,Travel and Subsistence,FINANCE AND COMMERCIAL                                                                              ,Staff Payment,BA0000281410,4.77,
BIS,The Insolvency Service,14/11/2014,Travel and Subsistence,FINANCE AND COMMERCIAL                                                                              ,Staff Payment,BA0000281410,6.00,
BIS,The Insolvency Service,17/11/2014,Travel and Subsistence,FINANCE AND COMMERCIAL                                                                              ,Staff Payment,BA0000281466,189.70,
BIS,The Insolvency Service,17/11/2014,Travel and Subsistence,FINANCE AND COMMERCIAL                                                                              ,Staff Payment,BA0000281466,11.40,
BIS,The Insolvency Service,17/11/2014,Travel and Subsistence,FINANCE AND COMMERCIAL                                                                              ,Staff Payment,BA0000281466,37.50,
BIS,The Insolvency Service,17/11/2014,Travel and Subsistence,FINANCE AND COMMERCIAL                                                                              ,Staff Payment,BA0000281466,177.45,
BIS,The Insolvency Service,20/11/2014,Travel and Subsistence,FINANCE AND COMMERCIAL                                                                              ,Staff Payment,BA0000281566,4.40,
BIS,The Insolvency Service,20/11/2014,Travel and Subsistence,FINANCE AND COMMERCIAL                                                                              ,Staff Payment,BA0000281566,26.90,
BIS,The Insolvency Service,20/11/2014,Travel and Subsistence,FINANCE AND COMMERCIAL                                                                              ,Staff Payment,BA0000281566,4.99,
BIS,The Insolvency Service,20/11/2014,Travel and Subsistence,FINANCE AND COMMERCIAL                                                                              ,Staff Payment,BA0000281566,9.59,
BIS,The Insolvency Service,20/11/2014,Travel and Subsistence,FINANCE AND COMMERCIAL                                                                              ,Staff Payment,BA0000281566,23.90,
BIS,The Insolvency Service,20/11/2014,Travel and Subsistence,FINANCE AND COMMERCIAL                                                                              ,Staff Payment,BA0000281566,27.10,
BIS,The Insolvency Service,20/11/2014,Travel and Subsistence,FINANCE AND COMMERCIAL                                                                              ,Staff Payment,BA0000281566,24.25,
BIS,The Insolvency Service,21/11/2014,Travel and Subsistence,FINANCE AND COMMERCIAL                                                                              ,Staff Payment,BA0000281587,5.00,
BIS,The Insolvency Service,21/11/2014,Travel and Subsistence,FINANCE AND COMMERCIAL                                                                              ,Staff Payment,BA0000281587,8.10,
BIS,The Insolvency Service,21/11/2014,Travel and Subsistence,FINANCE AND COMMERCIAL                                                                              ,Staff Payment,BA0000281587,12.80,
BIS,The Insolvency Service,21/11/2014,Travel and Subsistence,FINANCE AND COMMERCIAL                                                                              ,Staff Payment,BA0000281587,19.80,
BIS,The Insolvency Service,21/11/2014,Travel and Subsistence,FINANCE AND COMMERCIAL                                                                              ,Staff Payment,BA0000281587,4.48,
BIS,The Insolvency Service,25/11/2014,Travel and Subsistence,FINANCE AND COMMERCIAL                                                                              ,Staff Payment,BA0000281678,156.60,
BIS,The Insolvency Service,25/11/2014,Travel and Subsistence,FINANCE AND COMMERCIAL                                                                              ,Staff Payment,BA0000281678,12.80,
BIS,The Insolvency Service,25/11/2014,Travel and Subsistence,FINANCE AND COMMERCIAL                                                                              ,Staff Payment,BA0000281678,218.35,
BIS,The Insolvency Service,25/11/2014,Travel and Subsistence,FINANCE AND COMMERCIAL                                                                              ,Staff Payment,BA0000281620,29.10,
BIS,The Insolvency Service,25/11/2014,Travel and Subsistence,FINANCE AND COMMERCIAL                                                                              ,Staff Payment,BA0000281678,7.30,
BIS,The Insolvency Service,28/11/2014,Travel and Subsistence,FINANCE AND COMMERCIAL                                                                              ,Staff Payment,BA0000281787,319.00,
BIS,The Insolvency Service,28/11/2014,Travel and Subsistence,FINANCE AND COMMERCIAL                                                                              ,Staff Payment,BA0000281787,13.24,
BIS,The Insolvency Service,28/11/2014,Travel and Subsistence,FINANCE AND COMMERCIAL                                                                              ,Staff Payment,BA0000281787,2.20,
BIS,The Insolvency Service,28/11/2014,Travel and Subsistence,FINANCE AND COMMERCIAL                                                                              ,Staff Payment,BA0000281787,7.00,
BIS,The Insolvency Service,28/11/2014,Travel and Subsistence,FINANCE AND COMMERCIAL                                                                              ,Staff Payment,BA0000281787,21.00,
BIS,The Insolvency Service,28/11/2014,Travel and Subsistence,FINANCE AND COMMERCIAL                                                                              ,Staff Payment,BA0000281787,4.20,
BIS,The Insolvency Service,28/11/2014,Travel and Subsistence,FINANCE AND COMMERCIAL                                                                              ,Staff Payment,BA0000281787,144.00,
BIS,The Insolvency Service,28/11/2014,Travel and Subsistence,FINANCE AND COMMERCIAL                                                                              ,Staff Payment,BA0000281787,16.90,
BIS,The Insolvency Service,28/11/2014,Travel and Subsistence,FINANCE AND COMMERCIAL                                                                              ,Staff Payment,BA0000281787,5.00,
BIS,The Insolvency Service,28/11/2014,Travel and Subsistence,FINANCE AND COMMERCIAL                                                                              ,Staff Payment,BA0000281787,12.17,
BIS,The Insolvency Service,28/11/2014,Travel and Subsistence,FINANCE AND COMMERCIAL                                                                              ,Staff Payment,BA0000281787,3.75,
BIS,The Insolvency Service,28/11/2014,Travel and Subsistence,FINANCE AND COMMERCIAL                                                                              ,Staff Payment,BA0000281787,30.75,
BIS,The Insolvency Service,28/11/2014,Travel and Subsistence,FINANCE AND COMMERCIAL                                                                              ,Staff Payment,BA0000281787,9.85,
BIS,The Insolvency Service,28/11/2014,Travel and Subsistence,FINANCE AND COMMERCIAL                                                                              ,Staff Payment,BA0000281787,9.49,
BIS,The Insolvency Service,28/11/2014,Travel and Subsistence,FINANCE AND COMMERCIAL                                                                              ,Staff Payment,BA0000281787,4.99,
BIS,The Insolvency Service,10/11/2014,Travel and Subsistence,INFORMATION TECHNOLOGY                                                                              ,Staff Payment,BA0000281311,8.00,
BIS,The Insolvency Service,10/11/2014,Travel and Subsistence,INFORMATION TECHNOLOGY                                                                              ,Staff Payment,BA0000281311,87.75,
BIS,The Insolvency Service,10/11/2014,Travel and Subsistence,INFORMATION TECHNOLOGY                                                                              ,Staff Payment,BA0000281311,7.60,
BIS,The Insolvency Service,10/11/2014,Travel and Subsistence,INFORMATION TECHNOLOGY                                                                              ,Staff Payment,BA0000281311,87.75,
BIS,The Insolvency Service,11/11/2014,Travel and Subsistence,INFORMATION TECHNOLOGY                                                                              ,Staff Payment,BA0000281343,5.85,
BIS,The Insolvency Service,11/11/2014,Travel and Subsistence,INFORMATION TECHNOLOGY                                                                              ,Staff Payment,BA0000281343,5.85,
BIS,The Insolvency Service,11/11/2014,Travel and Subsistence,INFORMATION TECHNOLOGY                                                                              ,Staff Payment,BA0000281343,4.30,
BIS,The Insolvency Service,11/11/2014,Travel and Subsistence,INFORMATION TECHNOLOGY                                                                              ,Staff Payment,BA0000281343,7.36,
BIS,The Insolvency Service,11/11/2014,Travel and Subsistence,INFORMATION TECHNOLOGY                                                                              ,Staff Payment,BA0000281343,5.00,
BIS,The Insolvency Service,17/11/2014,Travel and Subsistence,INFORMATION TECHNOLOGY                                                                              ,Staff Payment,BA0000281466,112.00,
BIS,The Insolvency Service,17/11/2014,Travel and Subsistence,INFORMATION TECHNOLOGY                                                                              ,Staff Payment,BA0000281466,60.00,
BIS,The Insolvency Service,17/11/2014,Travel and Subsistence,INFORMATION TECHNOLOGY                                                                              ,Staff Payment,BA0000281466,18.00,
BIS,The Insolvency Service,17/11/2014,Travel and Subsistence,INFORMATION TECHNOLOGY                                                                              ,Staff Payment,BA0000281466,80.00,
BIS,The Insolvency Service,17/11/2014,Travel and Subsistence,INFORMATION TECHNOLOGY                                                                              ,Staff Payment,BA0000281466,14.40,
BIS,The Insolvency Service,17/11/2014,Travel and Subsistence,INFORMATION TECHNOLOGY                                                                              ,Staff Payment,BA0000281466,32.00,
BIS,The Insolvency Service,17/11/2014,Travel and Subsistence,INFORMATION TECHNOLOGY                                                                              ,Staff Payment,BA0000281466,97.45,
BIS,The Insolvency Service,17/11/2014,Travel and Subsistence,INFORMATION TECHNOLOGY                                                                              ,Staff Payment,BA0000281466,4.50,
BIS,The Insolvency Service,17/11/2014,Travel and Subsistence,INFORMATION TECHNOLOGY                                                                              ,Staff Payment,BA0000281466,67.50,
BIS,The Insolvency Service,17/11/2014,Travel and Subsistence,INFORMATION TECHNOLOGY                                                                              ,Staff Payment,BA0000281466,135.00,
BIS,The Insolvency Service,17/11/2014,Travel and Subsistence,INFORMATION TECHNOLOGY                                                                              ,Staff Payment,BA0000281466,4.20,
BIS,The Insolvency Service,17/11/2014,Travel and Subsistence,INFORMATION TECHNOLOGY                                                                              ,Staff Payment,BA0000281466,5.00,
BIS,The Insolvency Service,20/11/2014,Travel and Subsistence,INFORMATION TECHNOLOGY                                                                              ,Staff Payment,BA0000281566,8.00,
BIS,The Insolvency Service,20/11/2014,Travel and Subsistence,INFORMATION TECHNOLOGY                                                                              ,Staff Payment,BA0000281566,360.00,
BIS,The Insolvency Service,20/11/2014,Travel and Subsistence,INFORMATION TECHNOLOGY                                                                              ,Staff Payment,BA0000281566,6.20,
BIS,The Insolvency Service,20/11/2014,Travel and Subsistence,INFORMATION TECHNOLOGY                                                                              ,Staff Payment,BA0000281566,24.30,
BIS,The Insolvency Service,20/11/2014,Travel and Subsistence,INFORMATION TECHNOLOGY                                                                              ,Staff Payment,BA0000281566,3.05,
BIS,The Insolvency Service,21/11/2014,Telecoms,INFORMATION TECHNOLOGY                                                                              ,Staff Payment,BA0000281587,34.37,
BIS,The Insolvency Service,21/11/2014,Office Supplies and Services,INFORMATION TECHNOLOGY                                                                              ,Staff Payment,BA0000281587,3.99,
BIS,The Insolvency Service,25/11/2014,Telecoms,INFORMATION TECHNOLOGY                                                                              ,Staff Payment,BA0000281678,26.01,
BIS,The Insolvency Service,03/11/2014,Travel and Subsistence,INVESTIGATIONS & ENFORCEMENT                                                                        ,Staff Payment,BA0000281058,48.60,
BIS,The Insolvency Service,03/11/2014,Travel and Subsistence,INVESTIGATIONS & ENFORCEMENT                                                                        ,Staff Payment,BA0000281058,8.00,
BIS,The Insolvency Service,03/11/2014,Travel and Subsistence,INVESTIGATIONS & ENFORCEMENT                                                                        ,Staff Payment,BA0000281058,52.20,
BIS,The Insolvency Service,03/11/2014,Travel and Subsistence,INVESTIGATIONS & ENFORCEMENT                                                                        ,Staff Payment,BA0000281058,4.40,
BIS,The Insolvency Service,03/11/2014,Travel and Subsistence,INVESTIGATIONS & ENFORCEMENT                                                                        ,Staff Payment,BA0000281058,4.40,
BIS,The Insolvency Service,03/11/2014,Travel and Subsistence,INVESTIGATIONS & ENFORCEMENT                                                                        ,Staff Payment,BA0000281058,2.20,
BIS,The Insolvency Service,03/11/2014,Travel and Subsistence,INVESTIGATIONS & ENFORCEMENT                                                                        ,Staff Payment,BA0000281058,4.40,
BIS,The Insolvency Service,03/11/2014,Travel and Subsistence,INVESTIGATIONS & ENFORCEMENT                                                                        ,Staff Payment,BA0000281058,3.10,
BIS,The Insolvency Service,03/11/2014,Travel and Subsistence,INVESTIGATIONS & ENFORCEMENT                                                                        ,Staff Payment,BA0000281058,10.00,
BIS,The Insolvency Service,03/11/2014,Travel and Subsistence,INVESTIGATIONS & ENFORCEMENT                                                                        ,Staff Payment,BA0000281058,10.00,
BIS,The Insolvency Service,03/11/2014,Travel and Subsistence,INVESTIGATIONS & ENFORCEMENT                                                                        ,Staff Payment,BA0000281058,10.00,
BIS,The Insolvency Service,03/11/2014,Travel and Subsistence,INVESTIGATIONS & ENFORCEMENT                                                                        ,Staff Payment,BA0000281058,6.00,
BIS,The Insolvency Service,03/11/2014,Travel and Subsistence,INVESTIGATIONS & ENFORCEMENT                                                                        ,Staff Payment,BA0000281058,4.00,
BIS,The Insolvency Service,03/11/2014,Travel and Subsistence,INVESTIGATIONS & ENFORCEMENT                                                                        ,Staff Payment,BA0000281058,9.40,
BIS,The Insolvency Service,04/11/2014,Travel and Subsistence,INVESTIGATIONS & ENFORCEMENT                                                                        ,Staff Payment,BA0000281128,27.90,
BIS,The Insolvency Service,04/11/2014,Travel and Subsistence,INVESTIGATIONS & ENFORCEMENT                                                                        ,Staff Payment,BA0000281128,57.60,
BIS,The Insolvency Service,04/11/2014,Travel and Subsistence,INVESTIGATIONS & ENFORCEMENT                                                                        ,Staff Payment,BA0000281128,1.50,
BIS,The Insolvency Service,04/11/2014,Travel and Subsistence,INVESTIGATIONS & ENFORCEMENT                                                                        ,Staff Payment,BA0000281128,447.30,
BIS,The Insolvency Service,04/11/2014,Travel and Subsistence,INVESTIGATIONS & ENFORCEMENT                                                                        ,Staff Payment,BA0000281128,2.00,
BIS,The Insolvency Service,04/11/2014,Travel and Subsistence,INVESTIGATIONS & ENFORCEMENT                                                                        ,Staff Payment,BA0000281128,27.66,
BIS,The Insolvency Service,04/11/2014,Travel and Subsistence,INVESTIGATIONS & ENFORCEMENT                                                                        ,Staff Payment,BA0000281128,14.00,
BIS,The Insolvency Service,04/11/2014,Travel and Subsistence,INVESTIGATIONS & ENFORCEMENT                                                                        ,Staff Payment,BA0000281128,32.07,
BIS,The Insolvency Service,04/11/2014,Travel and Subsistence,INVESTIGATIONS & ENFORCEMENT                                                                        ,Staff Payment,BA0000281128,12.60,
BIS,The Insolvency Service,04/11/2014,Travel and Subsistence,INVESTIGATIONS & ENFORCEMENT                                                                        ,Staff Payment,BA0000281128,28.94,
BIS,The Insolvency Service,04/11/2014,Travel and Subsistence,INVESTIGATIONS & ENFORCEMENT                                                                        ,Staff Payment,BA0000281128,5.00,
BIS,The Insolvency Service,04/11/2014,Travel and Subsistence,INVESTIGATIONS & ENFORCEMENT                                                                        ,Staff Payment,BA0000281128,5.00,
BIS,The Insolvency Service,05/11/2014,Travel and Subsistence,INVESTIGATIONS & ENFORCEMENT                                                                        ,Staff Payment,BA0000281206,16.90,
BIS,The Insolvency Service,05/11/2014,Travel and Subsistence,INVESTIGATIONS & ENFORCEMENT                                                                        ,Staff Payment,BA0000281206,8.80,
BIS,The Insolvency Service,05/11/2014,Travel and Subsistence,INVESTIGATIONS & ENFORCEMENT                                                                        ,Staff Payment,BA0000281206,4.40,
BIS,The Insolvency Service,05/11/2014,Travel and Subsistence,INVESTIGATIONS & ENFORCEMENT                                                                        ,Staff Payment,BA0000281206,11.90,
BIS,The Insolvency Service,05/11/2014,Travel and Subsistence,INVESTIGATIONS & ENFORCEMENT                                                                        ,Staff Payment,BA0000281206,46.35,
BIS,The Insolvency Service,05/11/2014,Travel and Subsistence,INVESTIGATIONS & ENFORCEMENT                                                                        ,Staff Payment,BA0000281206,6.00,
BIS,The Insolvency Service,05/11/2014,Travel and Subsistence,INVESTIGATIONS & ENFORCEMENT                                                                        ,Staff Payment,BA0000281206,72.80,
BIS,The Insolvency Service,05/11/2014,Travel and Subsistence,INVESTIGATIONS & ENFORCEMENT                                                                        ,Staff Payment,BA0000281206,31.00,
BIS,The Insolvency Service,05/11/2014,Travel and Subsistence,INVESTIGATIONS & ENFORCEMENT                                                                        ,Staff Payment,BA0000281206,33.60,
BIS,The Insolvency Service,05/11/2014,Travel and Subsistence,INVESTIGATIONS & ENFORCEMENT                                                                        ,Staff Payment,BA0000281206,62.08,
BIS,The Insolvency Service,05/11/2014,Travel and Subsistence,INVESTIGATIONS & ENFORCEMENT                                                                        ,Staff Payment,BA0000281206,15.65,
BIS,The Insolvency Service,05/11/2014,Travel and Subsistence,INVESTIGATIONS & ENFORCEMENT                                                                        ,Staff Payment,BA0000281206,5.00,
BIS,The Insolvency Service,05/11/2014,Insolvency Case Related Costs,INVESTIGATIONS & ENFORCEMENT                                                                        ,Staff Payment,BA0000281206,14.00,
BIS,The Insolvency Service,05/11/2014,Insolvency Case Related Costs,INVESTIGATIONS & ENFORCEMENT                                                                        ,Staff Payment,BA0000281206,11.00,
BIS,The Insolvency Service,05/11/2014,Office Supplies and Services,INVESTIGATIONS & ENFORCEMENT                                                                        ,Staff Payment,BA0000281206,10.50,
BIS,The Insolvency Service,07/11/2014,Travel and Subsistence,INVESTIGATIONS & ENFORCEMENT                                                                        ,Staff Payment,BA0000281282,52.60,
BIS,The Insolvency Service,07/11/2014,Travel and Subsistence,INVESTIGATIONS & ENFORCEMENT                                                                        ,Staff Payment,BA0000281282,16.10,
BIS,The Insolvency Service,07/11/2014,Travel and Subsistence,INVESTIGATIONS & ENFORCEMENT                                                                        ,Staff Payment,BA0000281282,17.00,
BIS,The Insolvency Service,07/11/2014,Travel and Subsistence,INVESTIGATIONS & ENFORCEMENT                                                                        ,Staff Payment,BA0000281282,201.60,
BIS,The Insolvency Service,07/11/2014,Travel and Subsistence,INVESTIGATIONS & ENFORCEMENT                                                                        ,Staff Payment,BA0000281282,55.35,
BIS,The Insolvency Service,07/11/2014,Travel and Subsistence,INVESTIGATIONS & ENFORCEMENT                                                                        ,Staff Payment,BA0000281282,9.94,
BIS,The Insolvency Service,07/11/2014,Travel and Subsistence,INVESTIGATIONS & ENFORCEMENT                                                                        ,Staff Payment,BA0000281282,4.39,
BIS,The Insolvency Service,07/11/2014,Travel and Subsistence,INVESTIGATIONS & ENFORCEMENT                                                                        ,Staff Payment,BA0000281282,1.95,
BIS,The Insolvency Service,07/11/2014,Insolvency Case Related Costs,INVESTIGATIONS & ENFORCEMENT                                                                        ,Staff Payment,BA0000281282,21.00,
BIS,The Insolvency Service,07/11/2014,Insolvency Case Related Costs,INVESTIGATIONS & ENFORCEMENT                                                                        ,Staff Payment,BA0000281282,14.00,
BIS,The Insolvency Service,07/11/2014,Insolvency Case Related Costs,INVESTIGATIONS & ENFORCEMENT                                                                        ,Staff Payment,BA0000281282,7.00,
BIS,The Insolvency Service,07/11/2014,Employee Related Costs,INVESTIGATIONS & ENFORCEMENT                                                                        ,Staff Payment,BA0000281282,11.50,
BIS,The Insolvency Service,10/11/2014,Travel and Subsistence,INVESTIGATIONS & ENFORCEMENT                                                                        ,Staff Payment,BA0000281311,62.10,
BIS,The Insolvency Service,10/11/2014,Travel and Subsistence,INVESTIGATIONS & ENFORCEMENT                                                                        ,Staff Payment,BA0000281311,36.00,
BIS,The Insolvency Service,10/11/2014,Travel and Subsistence,INVESTIGATIONS & ENFORCEMENT                                                                        ,Staff Payment,BA0000281311,31.95,
BIS,The Insolvency Service,10/11/2014,Travel and Subsistence,INVESTIGATIONS & ENFORCEMENT                                                                        ,Staff Payment,BA0000281311,8.80,
BIS,The Insolvency Service,10/11/2014,Travel and Subsistence,INVESTIGATIONS & ENFORCEMENT                                                                        ,Staff Payment,BA0000281311,10.00,
BIS,The Insolvency Service,10/11/2014,Travel and Subsistence,INVESTIGATIONS & ENFORCEMENT                                                                        ,Staff Payment,BA0000281311,13.80,
BIS,The Insolvency Service,10/11/2014,Travel and Subsistence,INVESTIGATIONS & ENFORCEMENT                                                                        ,Staff Payment,BA0000281311,45.90,
BIS,The Insolvency Service,10/11/2014,Travel and Subsistence,INVESTIGATIONS & ENFORCEMENT                                                                        ,Staff Payment,BA0000281311,9.35,
BIS,The Insolvency Service,10/11/2014,Travel and Subsistence,INVESTIGATIONS & ENFORCEMENT                                                                        ,Staff Payment,BA0000281311,34.40,
BIS,The Insolvency Service,11/11/2014,Travel and Subsistence,INVESTIGATIONS & ENFORCEMENT                                                                        ,Staff Payment,BA0000281343,14.50,
BIS,The Insolvency Service,11/11/2014,Travel and Subsistence,INVESTIGATIONS & ENFORCEMENT                                                                        ,Staff Payment,BA0000281343,18.00,
BIS,The Insolvency Service,11/11/2014,Travel and Subsistence,INVESTIGATIONS & ENFORCEMENT                                                                        ,Staff Payment,BA0000281343,5.50,
BIS,The Insolvency Service,11/11/2014,Travel and Subsistence,INVESTIGATIONS & ENFORCEMENT                                                                        ,Staff Payment,BA0000281343,174.15,
BIS,The Insolvency Service,11/11/2014,Travel and Subsistence,INVESTIGATIONS & ENFORCEMENT                                                                        ,Staff Payment,BA0000281343,108.90,
BIS,The Insolvency Service,11/11/2014,Travel and Subsistence,INVESTIGATIONS & ENFORCEMENT                                                                        ,Staff Payment,BA0000281343,10.00,
BIS,The Insolvency Service,11/11/2014,Travel and Subsistence,INVESTIGATIONS & ENFORCEMENT                                                                        ,Staff Payment,BA0000281343,21.60,
BIS,The Insolvency Service,11/11/2014,Travel and Subsistence,INVESTIGATIONS & ENFORCEMENT                                                                        ,Staff Payment,BA0000281343,19.90,
BIS,The Insolvency Service,11/11/2014,Travel and Subsistence,INVESTIGATIONS & ENFORCEMENT                                                                        ,Staff Payment,BA0000281343,21.60,
BIS,The Insolvency Service,11/11/2014,Travel and Subsistence,INVESTIGATIONS & ENFORCEMENT                                                                        ,Staff Payment,BA0000281343,8.23,
BIS,The Insolvency Service,11/11/2014,Travel and Subsistence,INVESTIGATIONS & ENFORCEMENT                                                                        ,Staff Payment,BA0000281343,10.00,
BIS,The Insolvency Service,11/11/2014,Travel and Subsistence,INVESTIGATIONS & ENFORCEMENT                                                                        ,Staff Payment,BA0000281343,19.95,
BIS,The Insolvency Service,11/11/2014,Travel and Subsistence,INVESTIGATIONS & ENFORCEMENT                                                                        ,Staff Payment,BA0000281343,9.80,
BIS,The Insolvency Service,14/11/2014,Travel and Subsistence,INVESTIGATIONS & ENFORCEMENT                                                                        ,Staff Payment,BA0000281410,8.90,
BIS,The Insolvency Service,14/11/2014,Travel and Subsistence,INVESTIGATIONS & ENFORCEMENT                                                                        ,Staff Payment,BA0000281410,16.10,
BIS,The Insolvency Service,14/11/2014,Travel and Subsistence,INVESTIGATIONS & ENFORCEMENT                                                                        ,Staff Payment,BA0000281410,8.00,
BIS,The Insolvency Service,14/11/2014,Travel and Subsistence,INVESTIGATIONS & ENFORCEMENT                                                                        ,Staff Payment,BA0000281410,34.20,
BIS,The Insolvency Service,14/11/2014,Travel and Subsistence,INVESTIGATIONS & ENFORCEMENT                                                                        ,Staff Payment,BA0000281410,22.75,
BIS,The Insolvency Service,14/11/2014,Travel and Subsistence,INVESTIGATIONS & ENFORCEMENT                                                                        ,Staff Payment,BA0000281410,22.06,
BIS,The Insolvency Service,14/11/2014,Travel and Subsistence,INVESTIGATIONS & ENFORCEMENT                                                                        ,Staff Payment,BA0000281410,21.00,
BIS,The Insolvency Service,14/11/2014,Travel and Subsistence,INVESTIGATIONS & ENFORCEMENT                                                                        ,Staff Payment,BA0000281410,22.00,
BIS,The Insolvency Service,14/11/2014,Travel and Subsistence,INVESTIGATIONS & ENFORCEMENT                                                                        ,Staff Payment,BA0000281410,5.00,
BIS,The Insolvency Service,14/11/2014,Travel and Subsistence,INVESTIGATIONS & ENFORCEMENT                                                                        ,Staff Payment,BA0000281410,14.25,
BIS,The Insolvency Service,14/11/2014,Travel and Subsistence,INVESTIGATIONS & ENFORCEMENT                                                                        ,Staff Payment,BA0000281410,3.07,
BIS,The Insolvency Service,14/11/2014,Travel and Subsistence,INVESTIGATIONS & ENFORCEMENT                                                                        ,Staff Payment,BA0000281410,48.28,
BIS,The Insolvency Service,14/11/2014,Travel and Subsistence,INVESTIGATIONS & ENFORCEMENT                                                                        ,Staff Payment,BA0000281410,29.28,
BIS,The Insolvency Service,14/11/2014,Insolvency Case Related Costs,INVESTIGATIONS & ENFORCEMENT                                                                        ,Staff Payment,BA0000281410,7.00,
BIS,The Insolvency Service,17/11/2014,Travel and Subsistence,INVESTIGATIONS & ENFORCEMENT                                                                        ,Staff Payment,BA0000281466,70.20,
BIS,The Insolvency Service,17/11/2014,Travel and Subsistence,INVESTIGATIONS & ENFORCEMENT                                                                        ,Staff Payment,BA0000281466,6.30,
BIS,The Insolvency Service,17/11/2014,Travel and Subsistence,INVESTIGATIONS & ENFORCEMENT                                                                        ,Staff Payment,BA0000281466,7.00,
BIS,The Insolvency Service,17/11/2014,Travel and Subsistence,INVESTIGATIONS & ENFORCEMENT                                                                        ,Staff Payment,BA0000281466,11.50,
BIS,The Insolvency Service,17/11/2014,Travel and Subsistence,INVESTIGATIONS & ENFORCEMENT                                                                        ,Staff Payment,BA0000281466,5.30,
BIS,The Insolvency Service,17/11/2014,Travel and Subsistence,INVESTIGATIONS & ENFORCEMENT                                                                        ,Staff Payment,BA0000281466,56.55,
BIS,The Insolvency Service,17/11/2014,Travel and Subsistence,INVESTIGATIONS & ENFORCEMENT                                                                        ,Staff Payment,BA0000281466,27.00,
BIS,The Insolvency Service,17/11/2014,Travel and Subsistence,INVESTIGATIONS & ENFORCEMENT                                                                        ,Staff Payment,BA0000281466,100.60,
BIS,The Insolvency Service,17/11/2014,Travel and Subsistence,INVESTIGATIONS & ENFORCEMENT                                                                        ,Staff Payment,BA0000281466,4.60,
BIS,The Insolvency Service,17/11/2014,Travel and Subsistence,INVESTIGATIONS & ENFORCEMENT                                                                        ,Staff Payment,BA0000281466,18.90,
BIS,The Insolvency Service,17/11/2014,Travel and Subsistence,INVESTIGATIONS & ENFORCEMENT                                                                        ,Staff Payment,BA0000281466,113.40,
BIS,The Insolvency Service,17/11/2014,Travel and Subsistence,INVESTIGATIONS & ENFORCEMENT                                                                        ,Staff Payment,BA0000281466,15.00,
BIS,The Insolvency Service,17/11/2014,Travel and Subsistence,INVESTIGATIONS & ENFORCEMENT                                                                        ,Staff Payment,BA0000281466,14.00,
BIS,The Insolvency Service,17/11/2014,Travel and Subsistence,INVESTIGATIONS & ENFORCEMENT                                                                        ,Staff Payment,BA0000281466,30.00,
BIS,The Insolvency Service,17/11/2014,Travel and Subsistence,INVESTIGATIONS & ENFORCEMENT                                                                        ,Staff Payment,BA0000281466,67.25,
BIS,The Insolvency Service,17/11/2014,Travel and Subsistence,INVESTIGATIONS & ENFORCEMENT                                                                        ,Staff Payment,BA0000281466,5.20,
BIS,The Insolvency Service,17/11/2014,Travel and Subsistence,INVESTIGATIONS & ENFORCEMENT                                                                        ,Staff Payment,BA0000281466,46.35,
BIS,The Insolvency Service,17/11/2014,Travel and Subsistence,INVESTIGATIONS & ENFORCEMENT                                                                        ,Staff Payment,BA0000281466,37.80,
BIS,The Insolvency Service,17/11/2014,Travel and Subsistence,INVESTIGATIONS & ENFORCEMENT                                                                        ,Staff Payment,BA0000281466,4.50,
BIS,The Insolvency Service,17/11/2014,Travel and Subsistence,INVESTIGATIONS & ENFORCEMENT                                                                        ,Staff Payment,BA0000281466,184.50,
BIS,The Insolvency Service,17/11/2014,Travel and Subsistence,INVESTIGATIONS & ENFORCEMENT                                                                        ,Staff Payment,BA0000281466,100.80,
BIS,The Insolvency Service,17/11/2014,Travel and Subsistence,INVESTIGATIONS & ENFORCEMENT                                                                        ,Staff Payment,BA0000281466,42.80,
BIS,The Insolvency Service,17/11/2014,Travel and Subsistence,INVESTIGATIONS & ENFORCEMENT                                                                        ,Staff Payment,BA0000281466,9.00,
BIS,The Insolvency Service,17/11/2014,Travel and Subsistence,INVESTIGATIONS & ENFORCEMENT                                                                        ,Staff Payment,BA0000281466,5.00,
BIS,The Insolvency Service,17/11/2014,Travel and Subsistence,INVESTIGATIONS & ENFORCEMENT                                                                        ,Staff Payment,BA0000281466,5.00,
BIS,The Insolvency Service,17/11/2014,Travel and Subsistence,INVESTIGATIONS & ENFORCEMENT                                                                        ,Staff Payment,BA0000281466,8.55,
BIS,The Insolvency Service,17/11/2014,Travel and Subsistence,INVESTIGATIONS & ENFORCEMENT                                                                        ,Staff Payment,BA0000281466,29.17,
BIS,The Insolvency Service,17/11/2014,Travel and Subsistence,INVESTIGATIONS & ENFORCEMENT                                                                        ,Staff Payment,BA0000281466,93.73,
BIS,The Insolvency Service,17/11/2014,Travel and Subsistence,INVESTIGATIONS & ENFORCEMENT                                                                        ,Staff Payment,BA0000281466,7.39,
BIS,The Insolvency Service,17/11/2014,Travel and Subsistence,INVESTIGATIONS & ENFORCEMENT                                                                        ,Staff Payment,BA0000281466,4.07,
BIS,The Insolvency Service,17/11/2014,Travel and Subsistence,INVESTIGATIONS & ENFORCEMENT                                                                        ,Staff Payment,BA0000281466,6.75,
BIS,The Insolvency Service,17/11/2014,Travel and Subsistence,INVESTIGATIONS & ENFORCEMENT                                                                        ,Staff Payment,BA0000281466,26.29,
BIS,The Insolvency Service,17/11/2014,Travel and Subsistence,INVESTIGATIONS & ENFORCEMENT                                                                        ,Staff Payment,BA0000281466,9.10,
BIS,The Insolvency Service,17/11/2014,Travel and Subsistence,INVESTIGATIONS & ENFORCEMENT                                                                        ,Staff Payment,BA0000281466,15.00,
BIS,The Insolvency Service,17/11/2014,Travel and Subsistence,INVESTIGATIONS & ENFORCEMENT                                                                        ,Staff Payment,BA0000281466,4.70,
BIS,The Insolvency Service,17/11/2014,Travel and Subsistence,INVESTIGATIONS & ENFORCEMENT                                                                        ,Staff Payment,BA0000281466,4.95,
BIS,The Insolvency Service,17/11/2014,Travel and Subsistence,INVESTIGATIONS & ENFORCEMENT                                                                        ,Staff Payment,BA0000281466,4.21,
BIS,The Insolvency Service,17/11/2014,Travel and Subsistence,INVESTIGATIONS & ENFORCEMENT                                                                        ,Staff Payment,BA0000281466,9.45,
BIS,The Insolvency Service,17/11/2014,Travel and Subsistence,INVESTIGATIONS & ENFORCEMENT                                                                        ,Staff Payment,BA0000281466,84.41,
BIS,The Insolvency Service,20/11/2014,Travel and Subsistence,INVESTIGATIONS & ENFORCEMENT                                                                        ,Staff Payment,BA0000281566,61.60,
BIS,The Insolvency Service,20/11/2014,Travel and Subsistence,INVESTIGATIONS & ENFORCEMENT                                                                        ,Staff Payment,BA0000281566,4.00,
BIS,The Insolvency Service,20/11/2014,Travel and Subsistence,INVESTIGATIONS & ENFORCEMENT                                                                        ,Staff Payment,BA0000281566,7.00,
BIS,The Insolvency Service,20/11/2014,Travel and Subsistence,INVESTIGATIONS & ENFORCEMENT                                                                        ,Staff Payment,BA0000281566,36.90,
BIS,The Insolvency Service,20/11/2014,Travel and Subsistence,INVESTIGATIONS & ENFORCEMENT                                                                        ,Staff Payment,BA0000281566,9.00,
BIS,The Insolvency Service,20/11/2014,Travel and Subsistence,INVESTIGATIONS & ENFORCEMENT                                                                        ,Staff Payment,BA0000281566,45.00,
BIS,The Insolvency Service,20/11/2014,Travel and Subsistence,INVESTIGATIONS & ENFORCEMENT                                                                        ,Staff Payment,BA0000281566,10.00,
BIS,The Insolvency Service,20/11/2014,Travel and Subsistence,INVESTIGATIONS & ENFORCEMENT                                                                        ,Staff Payment,BA0000281566,9.05,
BIS,The Insolvency Service,20/11/2014,Travel and Subsistence,INVESTIGATIONS & ENFORCEMENT                                                                        ,Staff Payment,BA0000281566,2.40,
BIS,The Insolvency Service,20/11/2014,Travel and Subsistence,INVESTIGATIONS & ENFORCEMENT                                                                        ,Staff Payment,BA0000281566,5.00,
BIS,The Insolvency Service,20/11/2014,Insolvency Case Related Costs,INVESTIGATIONS & ENFORCEMENT                                                                        ,Staff Payment,BA0000281566,7.00,
BIS,The Insolvency Service,20/11/2014,Insolvency Case Related Costs,INVESTIGATIONS & ENFORCEMENT                                                                        ,Staff Payment,BA0000281566,14.00,
BIS,The Insolvency Service,21/11/2014,Travel and Subsistence,INVESTIGATIONS & ENFORCEMENT                                                                        ,Staff Payment,BA0000281587,9.00,
BIS,The Insolvency Service,21/11/2014,Travel and Subsistence,INVESTIGATIONS & ENFORCEMENT                                                                        ,Staff Payment,BA0000281587,5.00,
BIS,The Insolvency Service,21/11/2014,Travel and Subsistence,INVESTIGATIONS & ENFORCEMENT                                                                        ,Staff Payment,BA0000281587,3.80,
BIS,The Insolvency Service,21/11/2014,Travel and Subsistence,INVESTIGATIONS & ENFORCEMENT                                                                        ,Staff Payment,BA0000281587,11.00,
BIS,The Insolvency Service,21/11/2014,Travel and Subsistence,INVESTIGATIONS & ENFORCEMENT                                                                        ,Staff Payment,BA0000281587,10.80,
BIS,The Insolvency Service,21/11/2014,Travel and Subsistence,INVESTIGATIONS & ENFORCEMENT                                                                        ,Staff Payment,BA0000281587,10.00,
BIS,The Insolvency Service,21/11/2014,Travel and Subsistence,INVESTIGATIONS & ENFORCEMENT                                                                        ,Staff Payment,BA0000281587,82.80,
BIS,The Insolvency Service,21/11/2014,Travel and Subsistence,INVESTIGATIONS & ENFORCEMENT                                                                        ,Staff Payment,BA0000281587,50.40,
BIS,The Insolvency Service,21/11/2014,Travel and Subsistence,INVESTIGATIONS & ENFORCEMENT                                                                        ,Staff Payment,BA0000281587,14.00,
BIS,The Insolvency Service,21/11/2014,Travel and Subsistence,INVESTIGATIONS & ENFORCEMENT                                                                        ,Staff Payment,BA0000281587,10.00,
BIS,The Insolvency Service,21/11/2014,Travel and Subsistence,INVESTIGATIONS & ENFORCEMENT                                                                        ,Staff Payment,BA0000281587,5.00,
BIS,The Insolvency Service,21/11/2014,Travel and Subsistence,INVESTIGATIONS & ENFORCEMENT                                                                        ,Staff Payment,BA0000281587,5.00,
BIS,The Insolvency Service,21/11/2014,Travel and Subsistence,INVESTIGATIONS & ENFORCEMENT                                                                        ,Staff Payment,BA0000281587,10.00,
BIS,The Insolvency Service,21/11/2014,Travel and Subsistence,INVESTIGATIONS & ENFORCEMENT                                                                        ,Staff Payment,BA0000281587,4.19,
BIS,The Insolvency Service,21/11/2014,Travel and Subsistence,INVESTIGATIONS & ENFORCEMENT                                                                        ,Staff Payment,BA0000281587,4.99,
BIS,The Insolvency Service,25/11/2014,Travel and Subsistence,INVESTIGATIONS & ENFORCEMENT                                                                        ,Staff Payment,BA0000281620,8.90,
BIS,The Insolvency Service,25/11/2014,Travel and Subsistence,INVESTIGATIONS & ENFORCEMENT                                                                        ,Staff Payment,BA0000281678,4.00,
BIS,The Insolvency Service,25/11/2014,Travel and Subsistence,INVESTIGATIONS & ENFORCEMENT                                                                        ,Staff Payment,BA0000281678,9.00,
BIS,The Insolvency Service,25/11/2014,Travel and Subsistence,INVESTIGATIONS & ENFORCEMENT                                                                        ,Staff Payment,BA0000281620,4.20,
